Cogmind - Beta 17.1 @@@ ROGUE MODE // 2026.09.08 @ 18:33:39 Player: OBLIQUE Result: Destroyed by G-73 Enforcer with Phase Gun Performance ------------- Evolutions (9) 4500 Regions Visited (39) 7800 Robots Destroyed (461) 2305 Value Destroyed (23744) 23744 Prototype IDs (251) 5020 Alien Tech Used (2) 400 Bonus (17245) 17245 TOTAL SCORE: 61014 Bonus ------- High Alert Combat Kills 4897 Follower Combat Kills 3371 Entered Garrisons 800 Aligned with FarCom 300 Met Data Miner 300 Used Data Conduit 3000 Met Imprinter 300 Acquired ECA 300 Met Zhirov 300 MAIN.C Attacked Warlord 500 Warlord Defense Kills 1420 MAIN.C Attacked Proxy Base 500 Pursued by Intercept 1500 Friendly Fire -243 Cogmind --------- Core Integrity 0/1600 Matter 195/300 Energy 100/100 System Corruption 7% Temperature Cool (0) Movement Walking (120) Location -1/Command Parts ------- > --- POWER (2) -------- (None) > --- PROPULSION (4) --- Myomer Leg > --- UTILITY (15) ----- Enhanced Optical Array Graphene Brace Advanced Trap Extractor (1/8 Dirty Bomb) > --- WEAPON (4) ------- (None) > --- INVENTORY (5) ---- Improved Energy Well (400) Railgun Impact Mace Force Lance Peak State ------------ > --- POWER ------------ Particle Reactor Quantum Reactor > --- PROPULSION ------- Wheel Centrium Wheel Centrium Wheel Centrium Wheel > --- UTILITY ---------- Advanced Thermal Generator Advanced Heat Sink Advanced Cooling System Coolant Injector Humpback Improved Energy Well Experimental Armor Integrity Analyzer Particle Accelerator Hardened Heavy Armor Plating Centrium Medium Armor Plating Graphene Brace Experimental Focal Shield System Mapper > --- WEAPON ----------- Vortex Cannon Enhanced Nova Cannon Enhanced Nova Cannon Enhanced Nova Cannon > --- INVENTORY -------- Heavy Antimatter Reactor Particle Reactor Spiked Medium Treads Advanced Heat Sink Advanced Heat Sink Advanced Coolant Injector Huge Storage Unit Humpback Experimental Matter Compressor Quantum Capacitor Advanced Trap Extractor Dimensional Node Initializer Transdimensional Reconstructor Heavy Disruptor Cannon Vortex Cannon Enhanced Nova Cannon Linked Autogun Heavy Linear Accelerator Guided Missile Launcher Tiamat Missile Launcher Vortex Catalyst Activator Advanced Datajack CPS Tube Molecular Deconstructor Impact Mace Deploy-a-Sentry Deploy-a-Sentry [Rating: 189] Favorites ----------- Power Antimatter Reactor Engine Improved Ion Engine Power Core Neutrino Core Reactor Antimatter Reactor Propulsion Compact Wheel Treads Improved Treads Leg Myomer Leg Wheel Compact Wheel Flight Unit Improved Flight Unit Utility Humpback Device Improved Cooling System Storage Humpback Processor Advanced Targeting Computer Hackware System Mapper Protection Improved Medium Armor Plating Weapon Precision Assault Rifle Energy Gun Lightning Gun Energy Cannon Cooled Plasma Cannon Ballistic Gun Precision Assault Rifle Ballistic Cannon Hardcell Cannon Launcher Tiamat Missile Launcher Special Weapon Molecular Deconstructor Impact Weapon Impact Mace Piercing Weapon Force Lance Special Melee Weapon Datajack Build | -11 -10 -10 -9 -9 -9 -8 -8 -8 -8 -8 -7 -7 -7 -7 -7 -7 -6 -6 -6 -6 -6 -5 -5 -5 -5 -5 -4 -4 -4 -4 -4 -4 -4 -3 -3 -3 -2 -1 -1 ------- Run | Yrd Mat Min Mat Min Exi Min Mat Gar Mat Gar Fac Was Fac Low Low Dat Pro Fac Low Low Zio Pro Fac Upp Upp War Pro Fac Gar Fac Upp Upp Zhi Pro Res Gar Res Acc Com Slots Evolved 18 | . . . 2 . . . 2 . . . 2 . . . . . . 2 . . . . 2 . . . . 2 . . . . . . 2 . 2 2 . Power 1 | . . . . . . . . . . . . . . . . . . . . . . . . . . . . 1 . . . . . . . . . . . Propulsion 2 | . . . . . . . 1 . . . 1 . . . . . . . . . . . . . . . . . . . . . . . . . . . . Utility 13 | . . . 2 . . . . . . . 1 . . . . . . 2 . . . . 2 . . . . 1 . . . . . . 2 . 2 1 . Weapon 2 | . . . . . . . 1 . . . . . . . . . . . . . . . . . . . . . . . . . . . . . . 1 . Parts Attached 228 | 6 11 11 6 6 3 4 15 7 4 7 4 10 16 4 2 . 1 4 8 1 2 3 14 2 4 5 1 13 1 . 6 3 1 5 2 5 5 21 5 Power 17 | 1 . 2 . . . . . . 1 . . 4 . . . . . 1 1 . . 1 . . . 1 . 1 . . . . 1 . 1 1 1 . . Engine 4 | 1 . 2 . . . . . . . . . 1 . . . . . . . . . . . . . . . . . . . . . . . . . . . Core 4 | . . . . . . . . . 1 . . . . . . . . . 1 . . 1 . . . 1 . . . . . . . . . . . . . Reactor 9 | . . . . . . . . . . . . 3 . . . . . 1 . . . . . . . . . 1 . . . . 1 . 1 1 1 . . Propulsion 62 | 2 6 4 2 2 1 . 3 . 1 1 1 1 6 3 . . . 1 2 . 1 . 5 . 1 1 . 5 . . . 3 . 2 . . . 6 2 Treads 17 | 2 5 1 1 1 . . . . . . . 1 1 1 . . . . . . . . 1 . . . . 2 . . . . . 1 . . . . . Leg 1 | . . . . . . . . . . . . . . . . . . . . . . . . . . . . . . . . . . . . . . . 1 Wheel 43 | . . 3 1 1 1 . 3 . 1 1 1 . 5 2 . . . 1 2 . 1 . 4 . 1 1 . 3 . . . 3 . 1 . . . 6 1 Hover . | . . . . . . . . . . . . . . . . . . . . . . . . . . . . . . . . . . . . . . . . Flight 1 | . 1 . . . . . . . . . . . . . . . . . . . . . . . . . . . . . . . . . . . . . . Utility 84 | 1 4 2 3 3 2 3 6 4 1 2 1 3 5 1 1 . . 1 3 . . 2 5 1 1 . . 5 . . 6 . . 2 1 3 2 10 . Device 41 | . 1 2 1 1 . 2 . 1 1 . 1 2 2 . . . . 1 1 . . 1 3 1 1 . . 1 . . 4 . . 2 . 2 2 8 . Storage 12 | 1 3 . . . 2 . 1 . . 1 . 1 . 1 . . . . . . . . 1 . . . . 1 . . . . . . . . . . . Processor 6 | . . . 1 . . . 2 . . . . . . . . . . . 1 . . . . . . . . . . . 1 . . . . . . 1 . Hackware 2 | . . . . . . . . 1 . . . . . . . . . . . . . . . . . . . 1 . . . . . . . . . . . Protection 23 | . . . 1 2 . 1 3 2 . 1 . . 3 . 1 . . . 1 . . 1 1 . . . . 2 . . 1 . . . 1 1 . 1 . Artifact . | . . . . . . . . . . . . . . . . . . . . . . . . . . . . . . . . . . . . . . . . Weapon 65 | 2 1 3 1 1 . 1 6 3 1 4 2 2 5 . 1 . 1 1 2 1 1 . 4 1 2 3 1 2 1 . . . . 1 . 1 2 5 3 Energy Gun 18 | 2 1 . . 1 . . 3 1 . 3 . 1 2 . . . . . 1 . . . 2 . 1 . . . . . . . . . . . . . . Energy Cannon 17 | . . 1 . . . . 2 1 . . . . . . 1 . . 1 . . . . . . 1 1 1 2 . . . . . . . . 2 4 . Ballistic Gun 13 | . . 2 . . . . . . . 1 2 1 2 . . . . . 1 . . . 1 1 . 1 . . . . . . . . . . . . 1 Ballistic Cannon 3 | . . . . . . . . 1 . . . . . . . . . . . . . . . . . . . . . . . . . . . 1 . 1 . Launcher 6 | . . . . . . 1 1 . . . . . . . . . 1 . . . 1 . 1 . . 1 . . . . . . . . . . . . . Special Weapon 2 | . . . . . . . . . . . . . . . . . . . . . . . . . . . . . . . . . . 1 . . . . 1 Impact Weapon 2 | . . . . . . . . . 1 . . . 1 . . . . . . . . . . . . . . . . . . . . . . . . . . Slashing Weapon . | . . . . . . . . . . . . . . . . . . . . . . . . . . . . . . . . . . . . . . . . Piercing Weapon 1 | . . . . . . . . . . . . . . . . . . . . . . . . . . . . . . . . . . . . . . . 1 Special Melee Weapon 3 | . . . 1 . . . . . . . . . . . . . . . . 1 . . . . . . . . 1 . . . . . . . . . . Unidentified Prototypes 16 | . 1 . 1 . . 1 . . . . 1 . 3 . . . . . . . 1 . . 1 . 2 . 1 . . . . 2 1 . . . 1 . Corrupted Parts 2 | . . . . . . 1 . . . . . . . . . . . . . . . . . . . . . . . . . . . 1 . . . . . System Corruption 7 | . . . . . . 6 . . . . . . . . . . . . . . . . . . . . . . . . . . . 1 . . . . . Parts Lost 101 | . . . 1 2 . . 3 1 4 9 . . 4 . 2 . 1 3 3 2 . 2 5 . 1 . 1 . 1 . . 2 . 1 . 8 . 43 2 Power 9 | . . . . 1 . . . . 1 . . . . . . . . 1 . 1 . . . . . . . . . . . . . 1 . . . 4 . Propulsion 30 | . . . . . . . 1 . 2 2 . . 3 . . . 1 . 3 . . 2 1 . 1 . 1 . 1 . . 1 . . . 1 . 9 1 Utility 28 | . . . . . . . . . . 1 . . . . 1 . . 1 . . . . 2 . . . . . . . . 1 . . . 4 . 18 . Weapon 34 | . . . 1 1 . . 2 1 1 6 . . 1 . 1 . . 1 . 1 . . 2 . . . . . . . . . . . . 3 . 12 1 Highest Loss Streak 17 | . . . 1 2 . . 1 1 3 5 . . 2 . 1 . 1 2 2 1 . 1 2 . 1 . 1 . 1 . . 1 . 1 . 2 . 17 1 To Critical Strikes . | . . . . . . . . . . . . . . . . . . . . . . . . . . . . . . . . . . . . . . . . Average Backups 24 | 2 18 24 24 24 23 30 30 29 28 24 26 25 23 23 22 22 22 24 24 24 23 22 23 24 25 24 23 24 26 27 26 24 25 25 25 24 24 20 4 Power 1 | . 2 3 4 3 2 2 2 2 1 1 3 2 2 2 2 2 3 2 2 1 2 2 1 2 2 1 1 1 1 1 1 1 1 1 . 1 2 1 . Propulsion 3 | 1 6 7 7 8 9 11 9 9 8 6 4 3 2 1 2 2 2 2 2 2 2 1 . . . . . 1 1 1 1 2 2 1 2 1 1 1 . Utility 11 | . 6 9 9 9 8 12 13 13 13 14 14 15 13 16 15 15 13 15 15 15 14 13 13 10 10 11 11 9 12 13 12 9 9 10 9 9 7 6 2 Weapon 4 | . 1 2 2 2 3 3 4 4 3 1 3 4 4 3 2 2 3 3 3 3 3 3 5 8 8 8 8 8 9 9 9 9 9 9 9 8 10 7 2 Tool/Special . | . . . . . . . . . . . . . . . . . . . . . . . . . . . . . . . . . . . . . . . . Unused Backups 60 | . 10 3 3 2 1 2 3 1 . . . 10 2 . . . 2 . 1 . 1 1 1 . . 3 . . . . . 2 2 . . . 3 5 2 Power 11 | . 1 1 1 . 1 . . . . . . 4 . . . . . . 1 . . . 1 . . 1 . . . . . . . . . . . . . Propulsion 10 | . 4 . . 2 . . . . . . . 1 . . . . . . . . . . . . . . . . . . . 2 1 . . . . . . Utility 27 | . 4 1 1 . . 2 2 1 . . . 5 1 . . . 1 . . . 1 1 . . . 2 . . . . . . 1 . . . . 3 1 Weapon 9 | . . 1 1 . . . 1 . . . . . 1 . . . 1 . . . . . . . . . . . . . . . . . . . 3 . 1 Tool/Special 3 | . 1 . . . . . . . . . . . . . . . . . . . . . . . . . . . . . . . . . . . . 2 . Average Slot Usage (%) 86 | . 99 99 99 100 86 88 89 89 87 84 91 91 90 86 83 84 78 78 83 79 83 82 77 88 87 93 88 83 73 73 75 88 74 90 94 92 89 78 13 Engine 2 | . 14 14 11 11 11 11 9 9 4 . . 1 . . . . . . . . . . . . . . . . . . . . . . . . . . . Core 1 | . . . . . . . . . 3 9 7 1 . . . . . . . 3 6 6 5 5 5 5 5 . . . . . . 1 1 . . . . Reactor 2 | . . . . . . . . . . . . 4 7 7 7 7 7 6 5 2 . . . . . . . 4 5 5 5 5 5 4 6 9 8 6 . Treads 4 | . 28 15 11 11 8 . . 3 . 1 . . . . . . . . . 6 2 5 9 5 2 . . . 3 5 5 3 . . . . . . . Wheel 16 | . . 12 10 10 13 22 26 23 26 25 30 29 28 24 23 23 17 15 15 6 15 10 2 17 17 22 17 20 17 15 14 17 21 20 19 17 17 12 . Device 17 | . 13 14 11 11 8 . . 7 10 9 14 7 14 19 16 15 15 21 18 20 20 18 18 34 35 35 35 22 10 10 11 20 21 21 22 22 24 29 5 Storage 10 | . 14 14 11 11 13 13 11 9 9 9 7 14 7 7 7 7 7 8 13 13 13 13 11 11 11 11 11 10 10 10 10 10 10 10 9 9 8 7 . Processor 2 | . . . 11 11 11 11 9 1 . . . . . . . . . . 5 6 2 . . . . . . . . . . 5 5 5 4 4 4 4 4 Hackware 1 | . . . . . . . . 3 . . . . . . . . . . . . . . . . . . . 4 5 5 5 5 5 5 4 4 4 1 . Protection 4 | . . . 10 11 8 8 6 5 7 8 7 7 6 3 5 7 6 6 1 . 3 7 10 . . . . 3 5 5 5 5 5 5 8 7 8 2 . Energy Gun 6 | . 28 11 . 5 . 2 7 17 17 12 14 4 6 14 8 7 7 3 5 6 6 4 3 . 4 6 . . . . . . . . . . . . . Energy Cannon 4 | . . 3 11 5 . . 7 2 . 2 . . . . . 7 7 6 6 1 . . . . 2 2 7 9 9 6 11 12 1 10 9 6 9 10 . Ballistic Gun 6 | . . 12 10 11 2 11 7 . . 1 7 15 13 7 7 7 5 8 6 9 12 12 8 5 2 2 5 4 4 5 2 2 . 3 2 2 . 1 . Peak Build Rating 189 | 6 12 20 26 28 27 31 33 35 33 36 40 60 64 68 64 64 64 69 83 83 82 88 101 96 94 93 93 143 145 144 160 153 147 153 162 164 175 189 33 Average Rating 74 | 4 10 15 25 26 21 24 29 30 31 30 36 44 53 60 61 63 62 67 73 82 76 79 95 94 87 83 91 126 141 142 143 148 124 147 159 156 168 152 22 On Entrance 75 | . 6 12 20 26 27 26 27 30 33 30 33 37 52 52 62 64 64 64 68 83 82 73 87 77 94 83 93 91 137 144 144 153 145 147 148 159 155 175 14 Avg Prop Armor Cover (%) 8 | . . 11 8 8 11 . . . . 8 . . 10 . . . . . 11 11 12 . 5 7 8 . . 6 2 2 2 4 . . . . . 7 . Naked Turns . | . . . . . . . . . . . . . . . . . . . . . . . . . . . . . . . . . . . . . . . . Heaviest Build 513 | 13 89 97 102 104 295 295 228 228 228 227 229 241 241 240 241 241 245 248 246 242 243 252 274 271 259 264 264 332 332 329 331 288 287 297 296 307 329 513 11 Greatest Support 140 | 40 46 46 46 16 32 32 69 69 48 69 52 52 64 64 60 60 60 60 60 28 60 140 140 48 64 58 58 64 64 48 48 58 58 64 64 64 58 64 25 Greatest Overweight (x) 33 | . 1 9 6 6 9 9 7 4 6 6 4 7 7 8 4 4 5 5 8 8 8 4 5 5 5 5 5 5 6 6 6 5 4 5 4 6 5 33 2 Average Overweight (x) 4 | . . 6 5 6 5 6 4 3 4 4 4 4 3 3 3 4 4 4 4 8 5 2 1 5 4 4 4 4 5 6 6 4 3 4 4 4 5 4 . Largest Inventory Capacity 35 | 8 25 25 25 25 35 35 35 35 35 35 35 35 35 35 35 35 35 35 35 35 35 35 35 35 35 35 35 35 35 35 35 35 35 35 35 35 35 35 5 Average Capacity 32 | 6 20 25 25 25 27 35 35 35 35 35 35 35 35 35 35 35 35 35 35 35 35 35 35 35 35 35 35 35 35 35 35 35 35 35 35 35 35 32 5 Most Carried 35 | 4 22 25 25 25 32 35 35 35 35 31 34 35 35 35 35 35 35 35 35 35 35 35 35 35 35 35 35 35 35 35 35 35 35 35 35 35 35 35 5 Average Carried 31 | 2 18 24 24 24 26 34 34 33 33 29 31 34 34 34 33 33 34 34 34 34 34 33 32 33 34 34 35 34 34 35 34 33 34 34 33 33 34 28 4 Final Capacity 35 | 8 25 25 25 25 35 35 35 35 35 35 35 35 35 35 35 35 35 35 35 35 35 35 35 35 35 35 35 35 35 35 35 35 35 35 35 35 35 5 5 Final Carried 35 | 4 22 25 25 24 32 35 35 35 31 29 33 34 35 35 33 35 35 35 35 35 35 33 35 33 35 35 35 35 35 35 33 35 35 35 35 35 35 4 4 Class Distribution -------------------- 36% | Hauler-Tank 19% | Hauler-Skirmisher 15% | Mutant 13% | Hauler-Mutant 4% | Scavenger-Mutant Dominant Class ---------------- Mutant | -10/Materials Mutant | -10/Mines Mutant | -9/Materials Scavenger-Mutant | -9/Mines Mutant | -9/Exiles Hauler-Mutant | -8/Mines Hauler-Skirmisher | -8/Materials Hauler-Skirmisher | -8/Garrison Hauler-Skirmisher | -8/Materials Hauler-Mutant | -8/Garrison Scavenger-Skirmisher | -7/Factory Hauler-Skirmisher | -7/Waste Hauler-Skirmisher | -7/Factory Hauler-Skirmisher | -7/Lower Caves Hauler-Mutant | -7/Lower Caves Hauler-Tank | -7/Data Miner Hauler-Tank | -6/Proximity Caves Hauler-Skirmisher | -6/Factory Trapper-Skirmisher | -6/Lower Caves Hauler-Tank | -6/Lower Caves Hauler-Tank | -6/Zion Hauler-Tank | -5/Proximity Caves Hauler-Assassin | -5/Factory Scavenger-Mutant | -5/Upper Caves Hauler-Tank | -5/Upper Caves Scavenger-Mutant | -5/Warlord Hauler-Tank | -4/Proximity Caves Hauler-Skirmisher | -4/Factory Hauler-Tank | -4/Garrison Hauler-Mutant | -4/Factory Hauler-Tank | -4/Upper Caves Hauler-Tank | -4/Upper Caves Hauler-Mutant | -4/Zhirov Hauler-Tank | -3/Proximity Caves Hauler-Tank | -3/Research Hauler-Tank | -3/Garrison Hauler-Tank | -2/Research Hauler-Tank | -1/Access Trapper-Mutant | -1/Command Resources | -11 -10 -10 -9 -9 -9 -8 -8 -8 -8 -8 -7 -7 -7 -7 -7 -7 -6 -6 -6 -6 -6 -5 -5 -5 -5 -5 -4 -4 -4 -4 -4 -4 -4 -3 -3 -3 -2 -1 -1 ----------- Run | Yrd Mat Min Mat Min Exi Min Mat Gar Mat Gar Fac Was Fac Low Low Dat Pro Fac Low Low Zio Pro Fac Upp Upp War Pro Fac Gar Fac Upp Upp Zhi Pro Res Gar Res Acc Com Matter Collected 12314 | 212 151 185 297 140 84 224 452 386 33 555 . 198 503 287 106 12 159 197 310 179 60 318 960 119 110 895 240 445 621 . 381 228 . 306 81 1365 153 1315 47 Remotely . | . . . . . . . . . . . . . . . . . . . . . . . . . . . . . . . . . . . . . . . . Salvage Created 22003 | . 560 110 685 149 . 537 864 671 166 655 . 350 645 279 177 76 724 532 680 607 . 535 1690 87 96 457 304 1361 1174 . 961 600 . 511 69 1545 142 3957 47 Parts 912 | . 51 7 39 10 . 31 44 33 7 29 . 7 27 14 8 1 18 22 25 18 . 18 83 4 7 16 14 31 51 . 41 20 . 24 4 63 7 135 3 Haulers Intercepted 7 | . 1 . . . . . 3 . . . . . . . . . 1 1 . . . . 1 . . . . . . . . . . . . . . . . Recyclers Shooed 19 | . 3 . 1 1 . . . . . . . . 3 . . . . . . . . . 4 . . . . 6 . . . . . . . . . 1 . Parts Field Recycled . | . . . . . . . . . . . . . . . . . . . . . . . . . . . . . . . . . . . . . . . . Retrieved Matter . | . . . . . . . . . . . . . . . . . . . . . . . . . . . . . . . . . . . . . . . . Parts Self-Destructed 158 | . . . . . . . . . . . . . . 14 14 . 12 . 15 12 2 17 . 4 5 . 14 . . . 16 6 . 27 . . . . . Prevented 122 | . . . . . . . . . . . . . . 4 . . 17 . 15 5 . 4 . . 6 . . . . . 26 14 . 31 . . . . . Parts Restored . | . . . . . . . . . . . . . . . . . . . . . . . . . . . . . . . . . . . . . . . . Kills | -11 -10 -10 -9 -9 -9 -8 -8 -8 -8 -8 -7 -7 -7 -7 -7 -7 -6 -6 -6 -6 -6 -5 -5 -5 -5 -5 -4 -4 -4 -4 -4 -4 -4 -3 -3 -3 -2 -1 -1 ------- Run | Yrd Mat Min Mat Min Exi Min Mat Gar Mat Gar Fac Was Fac Low Low Dat Pro Fac Low Low Zio Pro Fac Upp Upp War Pro Fac Gar Fac Upp Upp Zhi Pro Res Gar Res Acc Com Combat Hostiles Destroyed 373 | . 13 2 16 5 . 10 14 16 5 15 . . 10 5 5 1 10 7 12 11 . 11 19 1 1 12 11 10 25 . 17 11 . 6 1 35 5 51 . Melee 1 | . . . . . . . . . . 1 . . . . . . . . . . . . . . . . . . . . . . . . . . . . . Guns 111 | . 9 2 4 1 . 1 5 9 2 5 . . 10 4 5 1 3 4 4 8 . 6 13 1 . 1 . 3 5 . 2 . . . . 2 . 1 . Cannons 125 | . . . 11 1 . . 4 2 . 5 . . . . . . 7 3 1 . . . . . . 1 2 4 13 . 7 8 . 6 1 20 1 28 . AOE 116 | . 4 . 1 3 . 9 5 4 2 4 . . . 1 . . . . 5 3 . 4 6 . . 10 9 3 5 . 4 3 . . . 13 4 14 . Classes Destroyed 24 | . 7 1 2 1 . . 1 1 . 1 . . . 1 1 . 1 . . . . 1 . . . 3 1 . . . 1 . . . . . . 1 . Worker 18 | . 4 . 1 . . 1 1 . . . . . 1 . . . . . . . . . 2 . . . . . . . . . . . . . 2 5 1 Builder 7 | . 1 . . . . . . . . . . . . . . . . . . . . . 2 . . . . 4 . . . . . . . . . . . Tunneler 3 | . . 1 . . . 1 . . . . . . . . . . . . . . . . 1 . . . . . . . . . . . . . . . . Hauler 7 | . 1 . . . . . 3 . . . . . . . . . 1 1 . . . . 1 . . . . . . . . . . . . . . . . Recycler 24 | . 1 . 1 1 . 1 . . . . . . 3 . . . . . . . . . 5 . . . . 7 . . . . . . . . . 5 . Minesweeper 9 | . . . . . . . . . . . . . . 1 . . 3 . 2 1 . . . . 1 . 1 . . . . . . . . . . . . Mechanic 2 | . . . . . . . . . . . . . . . . . . . . . . . . . . 1 . . . . . . . 1 . . . . . Operator 1 | . . . . . . . . . . . . . . . . . . . . . . . . . . . . . . . . . . . . . . 1 . Drone 2 | . . . . . . . . . . . . . . . . . . . . . . . . . . . 2 . . . . . . . . . . . . Watcher 15 | . 3 . 2 . . . 4 . 1 . . . . . . . . . . . . . 1 . . . . 1 . . . . . . . 1 . 1 1 Swarmer 96 | . 9 . 8 4 . 4 4 7 2 . . . 2 1 3 . 1 . . 3 . 1 8 . . . 5 4 10 . 5 4 . . . 7 4 . . Saboteur 4 | . . . . . . . . . . . . . . . . . . . . . . . . . . 1 . . . . . . . . . 3 . . . Grunt 138 | . 4 2 4 . . 6 4 5 2 10 . . 5 3 1 . 7 3 9 4 . 4 4 . . 7 1 . 11 . 6 4 . 3 . 9 . 20 . Brawler 11 | . . . . . . . . . . . . . . . . . 1 . 1 . . 2 . . . 1 . . . . 1 . . . . 2 . 3 . Duelist 12 | . . . 1 . . . . . . . . . . 1 . . . . 2 . . 1 . . . . . . . . 1 . . 1 . 2 . 3 . Protector 3 | . . . . . . . . . . . . . . . . . . . . . . 1 . . . 1 . . . . . . . . . . . 1 . Sentry 28 | . . . 3 . . . 5 3 1 2 . . . . . . 1 1 1 1 . 2 1 1 . . 1 . . . . . . . . 3 1 1 . Demolisher 3 | . . . . 1 . . . . . . . . . . . . . 1 . . . . . . . 1 . . . . . . . . . . . . . Hunter 29 | . . . . . . . . 1 . . . . 1 . . . . 2 . . . . 3 . 1 . 2 . . . 2 2 . . . 5 . 10 . Programmer 27 | . . . . . . . . . . 3 . . 1 . . . . . . . . . 1 . . . . 4 2 . 1 1 . 2 1 3 . 8 . Heavy 4 | . . . . . . . 1 . . . . . 1 . . . . . . . . . 1 . . . . . . . . . . . . . . 1 . Behemoth 2 | . . . . . . . . . . . . . . . . . . . . . . . . . . . . . . . 1 . . . . 1 . . . Enhanced Grunt 1 | . . . . . . . . . . . . . . . . 1 . . . . . . . . . . . . . . . . . . . . . . . Tracker 4 | . . . . . . . . . . . . . . . . . . . . . . . 1 . . . . 1 . . . . . . . . . 2 . Combat Programmer 3 | . . . . . . . . . . . . . . . . . . . . . . . . . . . . 1 . . . . . . . . . 2 . Striker 3 | . . . . . . . . . . . . . . . . . . . . . . . . . . 1 . . 2 . . . . . . . . . . Thug 1 | . . . . . . . . . . . . . . . . . . . . 1 . . . . . . . . . . . . . . . . . . . Butcher 3 | . . . . . . . . . . . . . . . . . . . . 3 . . . . . . . . . . . . . . . . . . . Mutant 1 | . . . . . . . . . . . . . . . 1 . . . . . . . . . . . . . . . . . . . . . . . . Best Kill Streak 9 | . 6 1 4 5 . 5 7 4 6 4 . . 2 4 2 1 4 3 3 4 . 6 8 1 1 9 4 7 6 . 6 4 . 4 1 7 5 9 1 Combat Bots Only 8 | . 3 1 3 4 . 4 7 4 5 4 . . 2 4 2 1 3 3 3 4 . 6 6 1 1 8 4 4 6 . 6 4 . 3 1 7 4 8 . Max Kills in Single Turn 4 | . 3 1 2 2 . 2 4 3 2 3 . . 1 2 1 1 1 1 3 3 . 2 3 1 1 4 4 3 3 . 4 2 . 1 1 4 3 3 1 Gunslinging 1 | . . . . . . . . . . . . . . 1 . . . . . . . . . . . . . . . . . . . . . . . . . Exploded 4 | . 2 . 1 2 . 2 4 3 2 3 . . . 1 . . . . 3 2 . 2 3 . . 3 4 1 3 . 4 2 . . . 3 2 3 . Melee 1 | . . . . . . . . . . 1 . . . . . . . . . . . . . . . . . . . . . . . . . . . . . Uniques/NPCs Destroyed . | . . . . . . . . . . . . . . . . . . . . . . . . . . . . . . . . . . . . . . . . Combat | -11 -10 -10 -9 -9 -9 -8 -8 -8 -8 -8 -7 -7 -7 -7 -7 -7 -6 -6 -6 -6 -6 -5 -5 -5 -5 -5 -4 -4 -4 -4 -4 -4 -4 -3 -3 -3 -2 -1 -1 -------- Run | Yrd Mat Min Mat Min Exi Min Mat Gar Mat Gar Fac Was Fac Low Low Dat Pro Fac Low Low Zio Pro Fac Upp Upp War Pro Fac Gar Fac Upp Upp Zhi Pro Res Gar Res Acc Com Hostile Shots Fired 1958 | . 43 17 47 21 . 14 29 33 26 120 . . 114 27 22 . 37 65 41 47 . 57 90 3 17 14 42 38 95 . 78 81 . 59 21 154 2 465 39 Missed 663 | . 16 4 13 5 . 8 6 9 6 34 . . 30 10 4 . 16 18 11 20 . 17 27 1 4 5 20 12 29 . 33 38 . 28 8 64 1 152 14 Hits 1295 | . 27 13 34 16 . 6 23 24 20 86 . . 84 17 18 . 21 47 30 27 . 40 63 2 13 9 22 26 66 . 45 43 . 31 13 90 1 313 25 Melee 11 | . . . 1 . . . . . . . . . . . . . . . 3 . . 1 . . . . . . 2 . . . . . . 1 . 3 . Projectile 1284 | . 27 13 33 16 . 6 23 24 20 86 . . 84 17 18 . 21 47 27 27 . 39 63 2 13 9 22 26 64 . 45 43 . 31 13 89 1 310 25 AOE 15 | . . . . 9 . . . . . . . . . . . . . 2 . . . . . . . 4 . . . . . . . . . . . . . Critical Strikes 70 | . . . 1 . . 1 4 4 . 5 . . 3 2 . . . 1 . 3 . 3 3 . 2 . . . 4 . 3 4 . 1 . 1 . 24 1 Actively Blocked 25 | . . . . . . . . . . . . . . . . . . . . . . . . . . . . . . . . . . . . . . 24 1 Part Disruptions 4 | . . . . . . . . . . 1 . . . . . . . . . . . . . . . . . 1 1 . . . . . . . . . 1 Damage Taken 22862 | . 404 174 427 387 . 106 509 342 274 1414 . . 1208 241 337 67 462 773 438 527 . 1022 1521 42 95 354 303 236 676 . 771 789 . 394 154 1091 16 6574 734 Core 3146 | . 79 57 68 120 . 11 18 41 33 180 . . 139 30 . 16 38 125 20 103 . 155 122 . 8 27 15 . 21 . 18 45 . 38 13 142 . 1055 409 Absorbed by Shields 3686 | . . . . . . . . . . 37 . . . . . . . . . . . . 72 14 100 149 169 185 712 . 161 79 . 321 161 742 . 784 . Reduced by Siege Mode 55 | . . . . . . . . . . . . . . . . . . . . . . . 55 . . . . . . . . . . . . . . . . Redirected to Shielding 150 | . . . . . . . . . . . . . . . . . . . . . . . . . . . . . . . . . . . 30 120 . . . Ignored by Resistances 1643 | . . . . . . . . . . . . . . . . . . . . . . . . . . . . 323 185 . 69 43 . 100 76 129 8 710 . Regen/Repaired (Parts) 3194 | . . . 86 . . . . . . . . 120 735 110 173 30 206 391 291 . 135 . . . . 68 . 771 . . . . . 78 . . . . . Core Remaining (%) 72 | 100 . 45 . . . 50 . . . 50 . . . . . . 68 . . . . 52 . . . . 82 . . . . . . 89 . 88 100 . . Volleys Fired 964 | . 44 12 37 14 . 15 39 50 13 58 . 7 43 10 11 3 26 26 24 22 . 27 67 5 3 13 17 28 56 . 28 20 . 25 3 82 7 129 . Largest 4 | . 2 2 2 2 . 2 3 3 2 3 . 2 3 3 3 3 3 3 3 3 . 3 3 1 3 3 3 3 3 . 3 3 . 3 3 3 3 4 . Hottest 480 | . 80 80 88 100 . 100 146 163 100 168 . 80 116 138 138 152 167 163 173 160 . 113 179 30 181 184 119 166 121 . 126 115 . 113 113 263 140 480 . Shots Fired 2241 | . 86 25 75 28 . 30 87 82 26 97 . 14 118 30 31 9 75 74 69 56 . 60 180 5 5 23 42 78 128 . 76 56 . 73 9 185 15 294 . Gun 1200 | . 86 25 38 17 . 18 52 69 24 55 . 14 118 30 31 6 47 48 42 49 . 52 175 5 4 6 13 28 41 . 9 13 . 25 3 41 . 16 . Cannon 910 | . . . 37 11 . . 30 5 . 39 . . . . . 3 26 26 23 5 . . . . 1 6 23 47 80 . 63 41 . 48 6 121 13 256 . Launcher 127 | . . . . . . 12 5 8 2 3 . . . . . . 2 . 4 2 . 8 5 . . 11 6 3 7 . 4 2 . . . 23 2 18 . Special 4 | . . . . . . . . . . . . . . . . . . . . . . . . . . . . . . . . . . . . . . 4 . Kinetic 721 | . . 12 38 14 . 16 27 . . 28 . 7 81 10 15 3 21 38 27 27 . 34 78 5 2 6 13 28 41 . 9 13 . 25 3 75 4 21 . Thermal 534 | . 42 1 . 3 . 2 . . . 28 . . . . . . . . . . . . 46 . 2 6 23 13 25 . 20 17 . 25 3 65 5 208 . Explosive 107 | . . . . . . . 3 7 2 3 . . . . . . 2 . 4 2 . 8 5 . . 11 6 3 7 . 4 2 . . . 23 2 13 . Electromagnetic 842 | . 44 12 37 11 . 12 57 75 24 38 . 7 37 20 16 6 52 36 38 27 . 18 51 . 1 . . 29 55 . 43 24 . 23 3 15 . 31 . Entropic 33 | . . . . . . . . . . . . . . . . . . . . . . . . . . . . 5 . . . . . . . 7 4 17 . Robot Hit Streak 27 | . 7 5 13 9 . 5 27 14 4 13 . 23 25 5 6 8 21 10 13 11 . 18 19 6 10 7 4 13 12 . 16 9 . 5 2 17 5 13 . Robot Miss Streak 7 | . 4 2 2 2 . 3 3 2 3 3 . . 7 2 6 1 2 3 3 2 . 1 3 1 1 2 4 4 4 . 4 3 . 3 4 3 1 5 . Penetration Max 2 | . . . . . . . . . . . . . 1 . . . . . . . . . 1 . . 2 . 2 1 . . . . . . 1 . . . Secondary Targets 13 | . . . . . . . . 1 . 1 . . 4 1 1 . . . . 1 . 1 3 . . . . . . . . . . . . . . . . Max Gunslinging Chain 1 | . . . . . . . . 1 . 1 . . 1 1 1 . . . . 1 . 1 1 . . . . . . . . . . . . . . . . Capacitor 33 | . . . . . . . . . . . . . . . . . . . . . . . . . . . . . . . . . . . . . . 33 . Shots Hit Robots 1431 | . 46 15 50 20 4 13 59 41 15 55 . 14 68 20 22 8 56 42 49 44 . 48 136 5 4 23 22 52 70 . 54 35 . 45 3 105 10 177 1 Core Hits 822 | . 27 4 21 6 . 20 31 23 6 28 . 4 24 15 7 5 29 18 28 24 . 29 76 3 2 41 16 30 40 . 27 19 . 12 1 77 11 118 . Critical Kills 10 | . . . . . . . . . . . . . . . . . . . . . . . 1 . 1 1 . . . . 1 . . . . . . 6 . Critical Parts Destroyed 6 | . . . . . . . . . . 1 . . 1 . . . . . . . . . . . . . . . 2 . . 1 . 1 . . . . . Critical Strikes 40 | . . . 1 1 . . . 1 1 3 . . 1 1 . . 1 . . . . . 3 . 1 1 . 4 3 . 2 1 . 2 . 2 2 9 . Burn 4 | . . . . 1 . . . . . 1 . . . . . . . . . . . . 2 . . . . . . . . . . . . . . . . Meltdown 7 | . . . . . . . . . . . . . . . . . . . . . . . . . 1 . . . . . . . . . . . . 6 . Destroy 8 | . . . . . . . . . . . . . 1 . . . . . . . . . 1 . . 1 . . 2 . 1 1 . 1 . . . . . Blast 1 | . . . . . . . . . . 1 . . . . . . . . . . . . . . . . . . . . . . . . . . . . . Corrupt 9 | . . . 1 . . . . 1 1 . . . . 1 . . 1 . . . . . . . . . . 1 1 . 1 . . 1 . . . . . Smash 1 | . . . . . . . . . . 1 . . . . . . . . . . . . . . . . . . . . . . . . . . . . . Sunder 10 | . . . . . . . . . . . . . . . . . . . . . . . . . . . . 3 . . . . . . . 2 2 3 . Melee Attacks 63 | . . . . . 4 . . . 1 4 . . . . 5 . 1 . . 2 . 7 3 4 . 8 . . 5 1 . . . 7 2 1 . 2 6 Impact 20 | . . . . . . . . . 1 4 . . . . . . . . . . . 3 2 4 . . . . . 1 . . . . 2 . . 2 1 Slashing . | . . . . . . . . . . . . . . . . . . . . . . . . . . . . . . . . . . . . . . . . Piercing 5 | . . . . . . . . . . . . . . . . . . . . . . . . . . . . . . . . . . . . . . . 5 Sneak Attacks 39 | . . . . . 4 . . . . . . . . . 5 . 1 . . 2 . 4 1 . . 8 . . 5 . . . . 7 . 1 . . 1 Combat Hostiles . | . . . . . . . . . . . . . . . . . . . . . . . . . . . . . . . . . . . . . . . . Follow-up Attacks . | . . . . . . . . . . . . . . . . . . . . . . . . . . . . . . . . . . . . . . . . Damage Inflicted 64094 | . 1190 217 1287 545 . 805 1763 1191 706 1406 . 120 1542 496 340 139 2096 1137 2094 1370 . 1865 3617 187 125 3183 1473 2964 3388 . 2797 1561 . 1354 91 6796 1205 14947 97 Guns 16173 | . 576 217 364 194 . 106 593 643 272 553 . 120 1542 380 340 82 683 721 617 862 . 795 2606 187 92 39 189 760 592 . 279 269 . 362 . 632 . 506 . Cannons 24058 | . . . 817 226 . . 641 133 . 554 . . . . . 55 643 416 584 98 . . . . 33 173 350 1227 1794 . 1637 1044 . 992 91 3495 675 8380 . Explosions 23629 | . 556 . 106 124 . 699 529 415 434 227 . . . 116 . . 770 . 893 410 . 1070 1011 . . 2971 934 977 1002 . 881 248 . . . 2669 530 6057 . Melee 169 | . . . . . . . . . . 72 . . . . . . . . . . . . . . . . . . . . . . . . . . . . 97 Ramming 65 | . 58 . . 1 . . . . . . . . . . . 2 . . . . . . . . . . . . . . . . . . . . . 4 . Kinetic 11338 | . . 95 364 153 . 84 278 . . 438 . 113 1039 148 207 58 313 501 379 508 . 508 1033 187 77 39 189 760 592 . 279 269 . 362 . 1405 95 865 . Thermal 15225 | . 420 . 106 165 . 150 342 43 140 353 . . . 116 . . 151 . 58 . . . 1389 . 33 173 350 846 558 . 351 398 . 509 83 1839 186 6466 . Explosive 17005 | . 336 . . . . . 164 357 294 227 . . . . . . 619 . 835 410 . 1070 632 . . 2971 934 464 1002 . 881 248 . . . 2669 530 2362 . Electromagnetic 14563 | . 376 122 817 226 . 571 979 791 272 316 . 7 503 232 133 79 1013 636 822 452 . 287 563 . 15 . . 571 1236 . 1286 646 . 483 8 406 . 715 . Impact 72 | . . . . . . . . . . 72 . . . . . . . . . . . . . . . . . . . . . . . . . . . . . Slashing . | . . . . . . . . . . . . . . . . . . . . . . . . . . . . . . . . . . . . . . . . Piercing 97 | . . . . . . . . . . . . . . . . . . . . . . . . . . . . . . . . . . . . . . . 97 Entropic 5729 | . . . . . . . . . . . . . . . . . . . . . . . . . . . . 323 . . . . . . . 477 394 4535 . Highest Corruption 8 | . 4 4 2 2 2 8 . . . 4 . . . . . . . . . . . . 1 1 1 1 . 1 2 2 2 2 2 3 . 2 . 5 7 Average Corruption 2 | . 3 4 2 2 2 2 . . . 3 . . . . . . . . . . . . 1 1 1 1 . 1 1 2 2 2 2 2 . 1 . 2 6 Corruption Purged . | . . . . . . . . . . . . . . . . . . . . . . . . . . . . . . . . . . . . . . . . Corruption Blocked 3 | . . . . . . . . . . . . . . . . . . . 3 . . . . . . . . . . . . . . . . . . . . Effects 213 | . 11 18 6 10 20 7 . . . 18 . . . . . . . . . . . . . 9 1 1 . 6 22 2 12 13 3 11 . 19 . 16 8 Message Errors 45 | . 2 4 1 . 6 1 . . . 2 . . . . . . . . . . . . . 2 1 1 . . 5 1 3 1 1 2 . 7 . 4 1 Matter Fused 54 | . 1 6 2 1 3 2 . . . 5 . . . . . . . . . . . . . 1 . . . 2 9 . 3 4 1 4 . 2 . 2 6 Heat Flow Errors 23 | . 1 2 . 3 1 . . . . 6 . . . . . . . . . . . . . 1 . . . . 1 . . 4 . 3 . . . 1 . Energy Discharges 33 | . 3 1 . 3 3 1 . . . 1 . . . . . . . . . . . . . 2 . . . 1 4 1 1 1 1 . . 5 . 4 1 Parts Rejected 2 | . . . . . . . . . . . . . . . . . . . . . . . . 1 . . . . . . . . . . . . . 1 . Parts Fused 1 | . . . . . . . . . . . . . . . . . . . . . . . . 1 . . . . . . . . . . . . . . . Data Loss (minor) 23 | . 1 3 . 1 4 1 . . . 1 . . . . . . . . . . . . . 1 . . . 1 1 . 2 . . 1 . 3 . 3 . Data Loss (major) 12 | . 1 1 2 2 1 . . . . . . . . . . . . . . . . . . . . . . 1 1 . 2 . . . . . . 1 . Misfires 10 | . 2 1 1 . . 2 . . . 2 . . . . . . . . . . . . . . . . . 1 . . . 1 . . . . . . . Alerts 6 | . . . . . 2 . . . . 1 . . . . . . . . . . . . . . . . . . . . 1 2 . . . . . . . Weapon Failures 4 | . . . . . . . . . . . . . . . . . . . . . . . . . . . . . 1 . . . . 1 . 2 . . . Overload Shots 7 | . . . . . . . . . . . . . . . . . . . . . . . . . . 1 . 1 . . . . . . . 5 . . . Overflow Damage 1991 | . 40 . 34 35 . 20 55 52 5 57 . . . 24 . . 41 . 37 8 . . 116 . . 12 113 253 145 . 88 28 . . . 247 35 489 57 Projectiles 993 | . . . 34 2 . . 21 . . 32 . . . . . . 41 . . 8 . . . . . . 41 144 72 . 12 28 . . . 160 . 398 . Explosions 909 | . 33 . . 33 . 20 34 52 5 . . . . 24 . . . . 37 . . . 116 . . 12 72 109 73 . 76 . . . . 87 35 91 . Melee 89 | . 7 . . . . . . . . 25 . . . . . . . . . . . . . . . . . . . . . . . . . . . . 57 Knockbacks 6 | . 1 . . . . . . . . 3 . . . . . . . . . . . . . . . . . . . . . . . . . 2 . . . Impact 1 | . 1 . . . . . . . . . . . . . . . . . . . . . . . . . . . . . . . . . . . . . . Kinetic 5 | . . . . . . . . . . 3 . . . . . . . . . . . . . . . . . . . . . . . . . 2 . . . Secondary . | . . . . . . . . . . . . . . . . . . . . . . . . . . . . . . . . . . . . . . . . Self-Inflicted Damage 856 | . 89 . . . . 17 11 . . . . . . 36 . 1 46 . . . . 121 . . . . 83 166 65 . . 75 . . . . . 146 . Shots 20 | . 3 . . . . 2 1 . . . . . . 1 . . 2 . . . . 4 . . . . 2 2 1 . . 1 . . . . . 1 . Rammed 14 | . 10 . . 1 . . . . . . . . . . . 1 . . . . . . . . . . . . . . . . . . . . . 1 1 Targets Rammed 14 | . 10 . . 1 . . . . . . . . . . . 1 . . . . . . . . . . . . . . . . . . . . . 1 1 Kicked . | . . . . . . . . . . . . . . . . . . . . . . . . . . . . . . . . . . . . . . . . Crushed . | . . . . . . . . . . . . . . . . . . . . . . . . . . . . . . . . . . . . . . . . Highest Temperature 404 | . 261 111 82 258 235 65 186 206 192 251 . 182 226 156 38 . 42 115 60 14 . 174 118 42 24 62 . 2 199 . 19 205 . 276 . 192 . 404 . Average Temperature 65 | . 85 30 28 51 126 24 63 64 107 92 . 96 69 55 18 . 15 38 14 7 . 58 43 42 18 45 . 2 42 . 15 90 . 48 . 112 . 94 . Received Heat Transfer 3755 | . 75 102 81 . . 36 153 153 90 531 . . 441 111 72 9 150 156 126 201 . 396 117 . . 17 4 . 102 . 79 165 . 45 8 53 . 255 27 Effects 6 | . . . . . 2 . . . . . . . . . . . . . . . . . . . . . . . . . . . . . . . . 4 . Energy Bleed 1 | . . . . . . . . . . . . . . . . . . . . . . . . . . . . . . . . . . . . . . 1 . Interference 2 | . . . . . 2 . . . . . . . . . . . . . . . . . . . . . . . . . . . . . . . . . . Damage (major) 3 | . . . . . . . . . . . . . . . . . . . . . . . . . . . . . . . . . . . . . . 3 . Siege Activations 3 | . . . . . . . . . . . . . . . . . . . . . . . 3 . . . . . . . . . . . . . . . . Total Turns 45 | . . . . . . . . . . . . . . . . . . . . . . . 45 . . . . . . . . . . . . . . . . Longest Duration 22 | . . . . . . . . . . . . . . . . . . . . . . . 22 . . . . . . . . . . . . . . . . Martial Activations . | . . . . . . . . . . . . . . . . . . . . . . . . . . . . . . . . . . . . . . . . Shielding Activations . | . . . . . . . . . . . . . . . . . . . . . . . . . . . . . . . . . . . . . . . . Robots Disrupted 4 | . . . . . . . . 1 . . . . . . . . . . . . . . 2 . . . . . . . . . . . . . . 1 . Combat Hostiles 3 | . . . . . . . . 1 . . . . . . . . . . . . . . 1 . . . . . . . . . . . . . . 1 . Robots Corrupted 20 | . 1 . 1 . . . 2 1 1 . . . . . . . 1 1 2 . . . . . . . . 2 2 . 4 . . . . . . 2 . Combat Hostiles 12 | . . . . . . . . 1 1 . . . . . . . . . 2 . . . . . . . . . 2 . 4 . . . . . . 2 . Parts Fried 74 | . 3 1 3 . . . 7 3 2 1 . . . . 2 . 2 7 3 4 . 1 2 . . . . 6 6 . 11 6 . 1 . 1 . 2 . Impact Corruptions 2 | . 1 . . . . . . . . 1 . . . . . . . . . . . . . . . . . . . . . . . . . . . . . Robots Melted 7 | . . . . . . . . . . . . . . . . . . . . . . . . . 1 . . . . . . . . . . . . 6 . Combat Hostiles 6 | . . . . . . . . . . . . . . . . . . . . . . . . . 1 . . . . . . . . . . . . 5 . Parts Melted 37 | . 1 . 1 . . . . . . 2 . . . . . 2 . . . 1 . 2 4 . 1 . . 4 1 . . 2 . 2 . 3 . 11 . Heat Transferred 15930 | . 900 . 150 348 . 137 300 50 200 888 . . . 200 . . 200 . 50 . . . 1841 . 50 230 500 750 750 . 500 550 . 700 100 1960 200 4376 . Parts Sabotaged 1 | . . . . . . . . . . . . . . . . . . . . . . . . . . . . . . . . . . . . . . 1 . Parts Stolen . | . . . . . . . . . . . . . . . . . . . . . . . . . . . . . . . . . . . . . . . . Parts Stripped . | . . . . . . . . . . . . . . . . . . . . . . . . . . . . . . . . . . . . . . . . Power Chain Reactions 21 | . 3 . 1 2 . 2 3 1 2 . . . . 1 . . 3 . 1 . . . 2 . . . . . . . . . . . . . . . . Alert | -11 -10 -10 -9 -9 -9 -8 -8 -8 -8 -8 -7 -7 -7 -7 -7 -7 -6 -6 -6 -6 -6 -5 -5 -5 -5 -5 -4 -4 -4 -4 -4 -4 -4 -3 -3 -3 -2 -1 -1 ------- Run | Yrd Mat Min Mat Min Exi Min Mat Gar Mat Gar Fac Was Fac Low Low Dat Pro Fac Low Low Zio Pro Fac Upp Upp War Pro Fac Gar Fac Upp Upp Zhi Pro Res Gar Res Acc Com Maximum Alert Level 5 | . 1 . . . . . 1 3 2 3 2 . 5 . . . . 3 . . . . 2 . . . . 1 4 3 . . . . . 5 4 5 4 Low Security (%) 50 | 100 99 100 100 100 . 100 88 2 . . . 100 21 . . . . 1 . . . . 57 . . . . 90 . . . . . . 100 18 . . . Level 1 8 | . . . . . . . 11 32 40 18 18 . 6 . . . . 57 . . . . 12 . . . . 9 9 . . . . . . 9 . . . Level 2 12 | . . . . . . . . 39 59 25 81 . 10 . . . . 34 . . . . 30 . . . . . 15 . . . . . . 11 . 15 . Level 3 18 | . . . . . . . . 26 . 56 . . 19 . . . . 6 . . . . . . . . . . 48 100 . . . . . 26 91 42 84 Level 4 7 | . . . . . . . . . . . . . 15 . . . . . . . . . . . . . . . 27 . . . . . . 25 8 35 15 Level 5 2 | . . . . . . . . . . . . . 24 . . . . . . . . . . . . . . . . . . . . . . 8 . 6 . High Security . | . . . . . . . . . . . . . . . . . . . . . . . . . . . . . . . . . . . . . . . . Max Security . | . . . . . . . . . . . . . . . . . . . . . . . . . . . . . . . . . . . . . . . . Peak Influence 2421 | . 203 30 136 95 . 152 306 800 506 1048 550 128 2421 . . . . 713 . . . . 654 . . . . 386 1523 799 . . . . 135 1646 1116 1678 1144 Initial 1039 | . . 24 . 20 . . . 188 390 303 550 128 . . . . . 260 . . . . 63 . . . . . 257 799 . . . . 101 72 925 621 1039 Average 426 | . 80 3 56 13 . 34 46 499 443 668 462 35 967 . . . . 404 . . . . 228 . . . . 58 925 780 . . . . 110 823 1046 1043 1054 Influence Increases 19143 | . 564 70 493 120 . 264 607 632 197 835 14 . 2937 485 460 . 700 737 452 196 . 316 1012 20 25 377 215 647 1276 21 453 260 . 379 96 1654 301 2043 285 Destroy 0b10 Robot/C 8940 | . 260 40 320 100 . 200 280 320 100 300 . . 940 200 200 . 320 280 280 140 . 240 400 20 20 280 180 200 540 . 360 220 . 220 20 700 120 1140 . Destroy 0b10 Robot/NC 530 | . 50 5 20 5 . 15 40 5 5 . . . 60 5 . . 20 5 10 5 . 5 70 . 5 10 15 60 . . . . . 5 5 5 10 80 10 Destroy Leader 1400 | . 58 10 64 10 . 30 94 20 22 30 . . 194 30 30 . 10 62 30 20 . 20 88 . . . 20 42 30 . 60 40 . 40 10 60 30 244 2 Allied During Kill 2898 | . . . . . . . . . . . . . 1194 235 230 . 350 343 132 1 . 6 5 . . 87 . . 52 . 18 . . 114 11 . 48 72 . Trap Triggered on 0b10 200 | . . . 10 . . . 50 . . . . . . . . . . . . . . . 40 . . . . 40 . . . . . . . . . . 60 Successful Hack 429 | . 84 . 28 . . 7 47 10 . 28 14 . 30 . . . . 14 . . . . . . . . . 34 . 19 . . . . 29 22 36 . 27 Select Force Hacks 30 | . 30 . . . . . . . . . . . . . . . . . . . . . . . . . . . . . . . . . . . . . . Disable Machine 855 | . 45 . 15 . . . 30 60 45 30 . . 135 . . . . 30 . . . . 105 . . . . 75 60 . . . . . 15 120 15 60 15 Anti-Garrison Action 1350 | . . . . . . . . 100 . 300 . . 200 . . . . . . . . . 200 . . . . . 300 . . . . . . 250 . . . Destroy Structure 1926 | . 22 . 6 5 . 12 51 102 25 57 . . 184 . . . . 3 . . . . 104 . . . . 196 189 2 . . . . 6 497 42 417 6 Lose Combat Pursuer 585 | . 15 15 30 . . . 15 15 . 90 . . . 15 . . . . . 30 . 45 . . . . . . 105 . 15 . . . . . . 30 165 Influence Decreases 18009 | . 501 133 440 173 . 263 318 122 530 254 696 366 540 1426 859 1057 286 498 806 495 . 216 490 549 118 114 478 279 121 784 668 534 271 228 150 105 911 1455 775 Entered New Map 7998 | . . 39 . 33 . . 1 102 410 164 498 238 . 888 277 1057 . 154 242 57 . . 37 231 19 . 263 . 111 724 282 104 271 . 50 25 721 415 585 Time Decay 8491 | . 501 94 430 140 . 263 297 . 80 . 198 128 400 538 562 . 276 254 514 408 . 176 363 318 99 34 205 269 . 60 326 410 . 178 100 . 170 530 170 Lost Part 970 | . . . 10 . . . 20 10 40 90 . . 40 . 20 . 10 30 30 20 . 20 50 . . . 10 . 10 . . 20 . 10 . 80 . 430 20 Lost Ally 550 | . . . . . . . . 10 . . . . 100 . . . . 60 20 10 . 20 40 . . 80 . 10 . . 60 . . 40 . . 20 80 . Squads Dispatched 54 | . 2 . 1 . . . 1 . 1 . . . 11 . . . . 6 . . . 1 8 . . . . 4 . . . . . . . . 2 16 1 Investigation 7 | . 1 . . . . . . . . . . . 2 . . . . 1 . . . . 1 . . . . . . . . . . . . . . 1 1 Extermination 12 | . . . . . . . . . . . . . 2 . . . . 1 . . . . 2 . . . . 2 . . . . . . . . 1 4 . Reinforcement 18 | . 1 . 1 . . . 1 . . . . . 5 . . . . 1 . . . . 4 . . . . 1 . . . . . . . . . 4 . Assault 9 | . . . . . . . . . . . . . 2 . . . . . . . . 1 . . . . . . . . . . . . . . 1 5 . Garrison 4 | . . . . . . . . . 1 . . . . . . . . 3 . . . . . . . . . . . . . . . . . . . . . Intercept 4 | . . . . . . . . . . . . . . . . . . . . . . . 1 . . . . 1 . . . . . . . . . 2 . Searches Triggered . | . . . . . . . . . . . . . . . . . . . . . . . . . . . . . . . . . . . . . . . . Construction Impeded 5 | . . . . . . . . . . . . . . . . . . . . . . . 2 . . . . 1 . . . . . . . . . 2 . Haulers Reinforced 4 | . . . . . . . . . . . . . 2 . . . . 1 . . . . 1 . . . . . . . . . . . . . . . . Active Scanning Responses . | . . . . . . . . . . . . . . . . . . . . . . . . . . . . . . . . . . . . . . . . Cargo Convoy Interrupts 1 | . . . . . . . . . . . . . . . . . . . . . . . 1 . . . . . . . . . . . . . . . . Stealth | -11 -10 -10 -9 -9 -9 -8 -8 -8 -8 -8 -7 -7 -7 -7 -7 -7 -6 -6 -6 -6 -6 -5 -5 -5 -5 -5 -4 -4 -4 -4 -4 -4 -4 -3 -3 -3 -2 -1 -1 --------- Run | Yrd Mat Min Mat Min Exi Min Mat Gar Mat Gar Fac Was Fac Low Low Dat Pro Fac Low Low Zio Pro Fac Upp Upp War Pro Fac Gar Fac Upp Upp Zhi Pro Res Gar Res Acc Com Distress Signals 29 | . 1 . 6 . . . 3 1 1 . . . 1 . . . . 5 . . . . 2 . . 1 . 1 . . . . . . . 1 . 3 3 Communications Jammed . | . . . . . . . . . . . . . . . . . . . . . . . . . . . . . . . . . . . . . . . . Distress Signals . | . . . . . . . . . . . . . . . . . . . . . . . . . . . . . . . . . . . . . . . . Times Spotted 555 | . 18 5 27 6 . 8 24 13 8 17 . . 39 11 8 4 19 18 14 14 . 18 21 1 3 24 10 17 29 . 19 11 . 13 3 29 4 78 22 Peak Tracking Total 13 | . 4 2 4 4 . 4 6 3 6 5 . . 6 4 3 3 5 5 4 4 . 8 6 1 2 13 4 3 5 . 6 4 . 4 5 5 2 10 8 Tactical Retreats 26 | . 1 1 2 . . . 1 1 . 3 . . . 1 . . . . . 1 . 2 . . . . . . 5 . 1 . . . . . . 2 5 Traps | -11 -10 -10 -9 -9 -9 -8 -8 -8 -8 -8 -7 -7 -7 -7 -7 -7 -6 -6 -6 -6 -6 -5 -5 -5 -5 -5 -4 -4 -4 -4 -4 -4 -4 -3 -3 -3 -2 -1 -1 ------- Run | Yrd Mat Min Mat Min Exi Min Mat Gar Mat Gar Fac Was Fac Low Low Dat Pro Fac Low Low Zio Pro Fac Upp Upp War Pro Fac Gar Fac Upp Upp Zhi Pro Res Gar Res Acc Com Traps Triggered 19 | . 3 . 1 . . . . . . 2 1 . 1 . . . . . . . . . . . . . . . 4 . . . . . . 4 . 2 1 Indirectly . | . . . . . . . . . . . . . . . . . . . . . . . . . . . . . . . . . . . . . . . . Trap Hack Attempts 115 | . . . 25 . . . 34 13 . . . . . . . . . . . . . . 43 . . . . . . . . . . . . . . . . Triggered . | . . . . . . . . . . . . . . . . . . . . . . . . . . . . . . . . . . . . . . . . Disarmed 1 | . . . . . . . . 1 . . . . . . . . . . . . . . . . . . . . . . . . . . . . . . . Reprogrammed 23 | . . . 5 . . . 6 3 . . . . . . . . . . . . . . 9 . . . . . . . . . . . . . . . . Reused 28 | . . . 1 . . . 5 . . . . . . . . . . . . 4 . 2 4 . 2 . . 4 . . . . . . . . . . 6 Traps Extracted 7 | . . . . . . . . . . . . . . . . . 1 . . 2 . 1 . . 2 . . . . . . . . . . . . . 1 Installed 28 | . . . . . . . . . . . . . . . . . . . . 7 . 4 . . 4 . . 5 . . . . . . . . . . 8 Triggered 28 | . . . 1 . . . 5 . . . . . . . . . . . . 4 . 2 4 . 2 . . 4 . . . . . . . . . . 6 Most Traps Carried 13 | . . . . 5 5 5 5 5 5 5 5 5 5 5 5 5 9 6 12 12 10 10 7 6 11 9 13 13 8 8 8 8 8 8 8 8 8 8 8 Objects Rigged 5 | . 5 . . . . . . . . . . . . . . . . . . . . . . . . . . . . . . . . . . . . . . Exploded 1 | . 1 . . . . . . . . . . . . . . . . . . . . . . . . . . . . . . . . . . . . . . Machines | -11 -10 -10 -9 -9 -9 -8 -8 -8 -8 -8 -7 -7 -7 -7 -7 -7 -6 -6 -6 -6 -6 -5 -5 -5 -5 -5 -4 -4 -4 -4 -4 -4 -4 -3 -3 -3 -2 -1 -1 ---------- Run | Yrd Mat Min Mat Min Exi Min Mat Gar Mat Gar Fac Was Fac Low Low Dat Pro Fac Low Low Zio Pro Fac Upp Upp War Pro Fac Gar Fac Upp Upp Zhi Pro Res Gar Res Acc Com Machines Disabled 79 | . 3 . 1 . . . 2 6 3 7 . . 9 . 1 . . 2 1 . . 1 7 . . . . 5 11 . . . . 1 1 12 1 4 1 Max in Single Turn 4 | . 2 . 1 . . . 1 1 1 2 . . . . 1 . . 1 1 . . 1 4 . . . . 2 2 . . . . . . 2 1 1 1 Garrison Access 2 | . . . . . . . . . . . . . 1 . . . . . . . . . 1 . . . . . . . . . . . . . . . . Garrison Relay 10 | . . . . . . . . 2 . 3 . . . . . . . . . . . . . . . . . . 3 . . . . . . 2 . . . Phase Generator 3 | . . . . . . . . . . 1 . . . . . . . . . . . . . . . . . . 1 . . . . . . 1 . . . Energy Cycler 1 | . . . . . . . . . . . . . . . . . . . . . . . . . . . . . . . . . . . . . . 1 . Machines Repaired . | . . . . . . . . . . . . . . . . . . . . . . . . . . . . . . . . . . . . . . . . Machines Dismantled . | . . . . . . . . . . . . . . . . . . . . . . . . . . . . . . . . . . . . . . . . Machines Sabotaged . | . . . . . . . . . . . . . . . . . . . . . . . . . . . . . . . . . . . . . . . . Overloaded Fab Kills . | . . . . . . . . . . . . . . . . . . . . . . . . . . . . . . . . . . . . . . . . Hacking | -11 -10 -10 -9 -9 -9 -8 -8 -8 -8 -8 -7 -7 -7 -7 -7 -7 -6 -6 -6 -6 -6 -5 -5 -5 -5 -5 -4 -4 -4 -4 -4 -4 -4 -3 -3 -3 -2 -1 -1 --------- Run | Yrd Mat Min Mat Min Exi Min Mat Gar Mat Gar Fac Was Fac Low Low Dat Pro Fac Low Low Zio Pro Fac Upp Upp War Pro Fac Gar Fac Upp Upp Zhi Pro Res Gar Res Acc Com Machines Accessed 101 | . 8 1 9 . 2 1 14 2 1 2 3 . 8 1 . 3 . 6 1 1 1 1 3 . . 2 . 6 3 2 . 2 3 1 3 2 3 3 3 Terminals 67 | . 7 . 8 . . 1 11 2 . 2 2 . 6 . . . . 5 1 . . . . . . . . 3 3 2 . 1 . 1 2 2 2 3 3 Fabricators 1 | . . . . . . . . . . . . . . . . . . . . . . . 1 . . . . . . . . . . . . . . . . Repair Stations 4 | . . . 1 . . . . . . . . . 1 . . . . . . . . . . . . . . 2 . . . . . . . . . . . Recycling Units 3 | . 1 . . . . . . . . . 1 . . . . . . . . . . . 1 . . . . . . . . . . . . . . . . Scanalyzers 3 | . . . . . . . 2 . . . . . . . . . . . . . . . . . . . . . . . . . . . . . 1 . . Garrison Access 7 | . . . . . . . 1 . 1 . . . 1 . . . . 1 . . . . 1 . . . . 1 . . . . . . 1 . . . . Total Hacks 271 | . 28 1 26 . 5 3 53 2 1 2 7 . 23 3 . 20 . 11 1 1 4 1 5 . . 6 . 15 5 7 . 2 12 1 8 2 5 7 4 Successful 169 | . 18 1 14 . 5 2 30 2 1 2 2 . 7 3 . 20 . 1 1 1 4 1 3 . . 6 . 12 2 5 . 2 12 1 5 2 3 . 1 Failed 98 | . 9 . 11 . . . 22 . . . 5 . 16 . . . . 10 . . . . 2 . . . . 3 3 2 . . . . 3 . 2 7 3 Catastrophic 12 | . 2 . 2 . . . . . . . . . 1 . . . . 1 . . . . 1 . . . . . 1 . . . . . . . 1 2 1 Database Lockouts 4 | . 1 . 1 . . 1 1 . . . . . . . . . . . . . . . . . . . . . . . . . . . . . . . . Manual 114 | . 17 . 14 . 1 3 26 . . . 4 . 16 . . . . 4 1 . . . 3 . . 1 . 3 . 2 . . . . 6 . 2 7 4 Terminals 174 | . 25 . 24 . . 3 44 2 . 2 5 . 15 . . . . 8 1 . . . . . . . . 8 5 7 . 1 . 1 7 2 3 7 4 Fabricators 2 | . . . . . . . . . . . . . . . . . . . . . . . 2 . . . . . . . . . . . . . . . . Repair Stations 13 | . . . 2 . . . . . . . . . 5 . . . . . . . . . . . . . . 6 . . . . . . . . . . . Recycling Units 7 | . 3 . . . . . . . . . 2 . . . . . . . . . . . 2 . . . . . . . . . . . . . . . . Scanalyzers 10 | . . . . . . . 8 . . . . . . . . . . . . . . . . . . . . . . . . . . . . . 2 . . Garrison Access 11 | . . . . . . . 1 . 1 . . . 3 . . . . 3 . . . . 1 . . . . 1 . . . . . . 1 . . . . Terminal Hacks 118 | . 13 1 8 . 5 2 16 2 . 2 1 . 1 3 . 20 . 1 1 1 4 1 . . . 6 . 3 2 5 . 2 12 1 2 2 1 . . Record 17 | . . . . . 4 1 . . . . . . . 3 . 2 . . 1 . . 1 . . . . . . . . . 1 4 . . . . . . Part Schematic 17 | . . . . . . . . . . . . . . . . 9 . . . . 4 . . . . . . . . . . . 4 . . . . . . Robot Schematic 6 | . . . . . . . . . . . . . . . . 6 . . . . . . . . . . . . . . . . . . . . . . . Robot Analysis 9 | . 4 . 3 . . 1 1 . . . . . . . . . . . . . . . . . . . . . . . . . . . . . . . . Prototype ID Bank 22 | . 3 . 1 . . . 4 . . . . . . . . 3 . 1 . . . . . . . 5 . . . 1 . . 4 . . . . . . Open Door 6 | . . 1 . . . . . . . . . . . . . . . . . 1 . . . . . 1 . . 1 . . 1 . 1 . . . . . Level Access Points 1 | . . . . . . . . . . . . . . . . . . . . . . . . . . . . . . . . . . . 1 . . . . Branch Access Points 3 | . . . . . . . . . . . . . 1 . . . . . . . . . . . . . . 1 . 1 . . . . . . . . . Emergency Access Points 6 | . . . . . . . 3 . . 1 . . . . . . . . . . . . . . . . . . 1 . . . . . . 1 . . . Terminal Index 3 | . 1 . 1 . . . 1 . . . . . . . . . . . . . . . . . . . . . . . . . . . . . . . . Alert Level 1 | . . . . . . . . . . . . . . . . . . . . . . . . . . . . . . 1 . . . . . . . . . Locate Traps 7 | . 3 . 2 . . . 1 . . . . . . . . . . . . . . . . . . . . 1 . . . . . . . . . . . Dispatch Records 1 | . 1 . . . . . . . . . . . . . . . . . . . . . . . . . . . . . . . . . . . . . . Hauler Manifests 4 | . . . 1 . . . 2 . . . 1 . . . . . . . . . . . . . . . . . . . . . . . . . . . . Registered Components 1 | . . . . . . . 1 . . . . . . . . . . . . . . . . . . . . . . . . . . . . . . . . Zone Layout 9 | . 1 . . . . . 3 . . . . . . . . . . . . . . . . . . . . 1 . 2 . . . . 1 . 1 . . Garrison Registry 1 | . . . . . . . . 1 . . . . . . . . . . . . . . . . . . . . . . . . . . . . . . . Patrol Navigation 1 | . . . . . . . . . . 1 . . . . . . . . . . . . . . . . . . . . . . . . . . . . . Security Stations 2 | . . . . . . . . 1 . . . . . . . . . . . . . . . . . . . . . . . . . . . 1 . . . Proto ID Catalog 1 | . . . . . 1 . . . . . . . . . . . . . . . . . . . . . . . . . . . . . . . . . . Fabricator Hacks 1 | . . . . . . . . . . . . . . . . . . . . . . . 1 . . . . . . . . . . . . . . . . Network Status 1 | . . . . . . . . . . . . . . . . . . . . . . . 1 . . . . . . . . . . . . . . . . Repair Station Hacks 12 | . . . 2 . . . . . . . . . 4 . . . . . . . . . . . . . . 6 . . . . . . . . . . . Scan Component 6 | . . . 1 . . . . . . . . . 2 . . . . . . . . . . . . . . 3 . . . . . . . . . . . Repair 6 | . . . 1 . . . . . . . . . 2 . . . . . . . . . . . . . . 3 . . . . . . . . . . . Recycling Unit Hacks . | . . . . . . . . . . . . . . . . . . . . . . . . . . . . . . . . . . . . . . . . Scanalyzer 6 | . . . . . . . 5 . . . . . . . . . . . . . . . . . . . . . . . . . . . . . 1 . . Insert Component 4 | . . . . . . . 3 . . . . . . . . . . . . . . . . . . . . . . . . . . . . . 1 . . Analyze 1 | . . . . . . . 1 . . . . . . . . . . . . . . . . . . . . . . . . . . . . . . . . Retrieve Study 1 | . . . . . . . 1 . . . . . . . . . . . . . . . . . . . . . . . . . . . . . . . . Garrison Access Hacks 4 | . . . . . . . 1 . 1 . . . . . . . . . . . . . . . . . . 1 . . . . . . 1 . . . . Unlock Access 4 | . . . . . . . 1 . 1 . . . . . . . . . . . . . . . . . . 1 . . . . . . 1 . . . . Unauthorized Hacks 28 | . 5 . 4 . . . 8 . . . 1 . 2 . . . . . . . . . 2 . . . . 2 . . . . . . 2 . 1 . 1 Terminals 23 | . 3 . 4 . . . 8 . . . 1 . 1 . . . . . . . . . . . . . . 2 . . . . . . 2 . 1 . 1 Assimilate 7 | . . . . . . . 4 . . . . . . . . . . . . . . . . . . . . 1 . . . . . . 1 . . . 1 Botnet 12 | . 2 . 2 . . . 3 . . . 1 . 1 . . . . . . . . . . . . . . 1 . . . . . . 1 . 1 . . Detonate 1 | . 1 . . . . . . . . . . . . . . . . . . . . . . . . . . . . . . . . . . . . . . Disrupt 1 | . . . . . . . 1 . . . . . . . . . . . . . . . . . . . . . . . . . . . . . . . . Operators 2 | . . . 2 . . . . . . . . . . . . . . . . . . . . . . . . . . . . . . . . . . . . Fabricators . | . . . . . . . . . . . . . . . . . . . . . . . . . . . . . . . . . . . . . . . . Repair Stations . | . . . . . . . . . . . . . . . . . . . . . . . . . . . . . . . . . . . . . . . . Recycling Units 3 | . 2 . . . . . . . . . . . . . . . . . . . . . 1 . . . . . . . . . . . . . . . . Reject 1 | . . . . . . . . . . . . . . . . . . . . . . . 1 . . . . . . . . . . . . . . . . Mask 1 | . 1 . . . . . . . . . . . . . . . . . . . . . . . . . . . . . . . . . . . . . . Tunnel 1 | . 1 . . . . . . . . . . . . . . . . . . . . . . . . . . . . . . . . . . . . . . Scanalyzers . | . . . . . . . . . . . . . . . . . . . . . . . . . . . . . . . . . . . . . . . . Garrison Access 2 | . . . . . . . . . . . . . 1 . . . . . . . . . 1 . . . . . . . . . . . . . . . . Jam 2 | . . . . . . . . . . . . . 1 . . . . . . . . . 1 . . . . . . . . . . . . . . . . Data Cores Recovered 1 | . . . . . . . . . . . . . . . . . . . . . . . . . . . . . . . . . . . . . . 1 . Used . | . . . . . . . . . . . . . . . . . . . . . . . . . . . . . . . . . . . . . . . . Hacking Detections 70 | . 7 . 9 . . 1 12 1 . 1 2 . 8 . . . . 6 . . . . 2 . . . . 5 1 2 . . . 1 2 1 3 3 3 Full Trace Events 3 | . . . . . . . 1 . . . . . 1 . . . . 1 . . . . . . . . . . . . . . . . . . . . . Feedback Events . | . . . . . . . . . . . . . . . . . . . . . . . . . . . . . . . . . . . . . . . . Feedback Blocked . | . . . . . . . . . . . . . . . . . . . . . . . . . . . . . . . . . . . . . . . . Robot Schematics Acquired 6 | . . . . . . . . . . . . . . . . 6 . . . . . . . . . . . . . . . . . . . . . . . Robots Built . | . . . . . . . . . . . . . . . . . . . . . . . . . . . . . . . . . . . . . . . . Authchips . | . . . . . . . . . . . . . . . . . . . . . . . . . . . . . . . . . . . . . . . . Time . | . . . . . . . . . . . . . . . . . . . . . . . . . . . . . . . . . . . . . . . . Total Robot Build Rating . | . . . . . . . . . . . . . . . . . . . . . . . . . . . . . . . . . . . . . . . . Part Schematics Acquired 18 | . . . . . . . 1 . . . . . . . . 9 . . . . 4 . . . . . . . . . . . 4 . . . . . . Parts Built . | . . . . . . . . . . . . . . . . . . . . . . . . . . . . . . . . . . . . . . . . Authchips . | . . . . . . . . . . . . . . . . . . . . . . . . . . . . . . . . . . . . . . . . Time . | . . . . . . . . . . . . . . . . . . . . . . . . . . . . . . . . . . . . . . . . Total Part Build Rating . | . . . . . . . . . . . . . . . . . . . . . . . . . . . . . . . . . . . . . . . . Part Studies Acquired 1 | . . . . . . . 1 . . . . . . . . . . . . . . . . . . . . . . . . . . . . . . . . Parts Repaired 6 | . . . 1 . . . . . . . . . 2 . . . . . . . . . . . . . . 3 . . . . . . . . . . . Time 164 | . . . 32 . . . . . . . . . 52 . . . . . . . . . . . . . . 80 . . . . . . . . . . . Parts Recycled . | . . . . . . . . . . . . . . . . . . . . . . . . . . . . . . . . . . . . . . . . Recycled Matter . | . . . . . . . . . . . . . . . . . . . . . . . . . . . . . . . . . . . . . . . . Retrieved Matter . | . . . . . . . . . . . . . . . . . . . . . . . . . . . . . . . . . . . . . . . . Retrieved Components . | . . . . . . . . . . . . . . . . . . . . . . . . . . . . . . . . . . . . . . . . Parts Scanalyzed 2 | . . . . . . . 2 . . . . . . . . . . . . . . . . . . . . . . . . . . . . . . . . Part Schematics Acquired 1 | . . . . . . . 1 . . . . . . . . . . . . . . . . . . . . . . . . . . . . . . . . Parts Damaged . | . . . . . . . . . . . . . . . . . . . . . . . . . . . . . . . . . . . . . . . . Bothacking | -11 -10 -10 -9 -9 -9 -8 -8 -8 -8 -8 -7 -7 -7 -7 -7 -7 -6 -6 -6 -6 -6 -5 -5 -5 -5 -5 -4 -4 -4 -4 -4 -4 -4 -3 -3 -3 -2 -1 -1 ------------ Run | Yrd Mat Min Mat Min Exi Min Mat Gar Mat Gar Fac Was Fac Low Low Dat Pro Fac Low Low Zio Pro Fac Upp Upp War Pro Fac Gar Fac Upp Upp Zhi Pro Res Gar Res Acc Com Used RIF Installer . | . . . . . . . . . . . . . . . . . . . . . . . . . . . . . . . . . . . . . . . . Robots Hacked 5 | . . . . . 4 . . . . . . . . . . . . . . . . . 1 . . . . . . . . . . . . . . . . Non-combat 4 | . . . . . 3 . . . . . . . . . . . . . . . . . 1 . . . . . . . . . . . . . . . . Combat 1 | . . . . . 1 . . . . . . . . . . . . . . . . . . . . . . . . . . . . . . . . . . Robot Hacks Applied 5 | . . . . . 4 . . . . . . . . . . . . . . . . . 1 . . . . . . . . . . . . . . . . parse_system 4 | . . . . . 4 . . . . . . . . . . . . . . . . . . . . . . . . . . . . . . . . . . find_chute 1 | . . . . . . . . . . . . . . . . . . . . . . . 1 . . . . . . . . . . . . . . . . Relay Couplers Released 36 | . . . . . . . . 7 . 11 . . . . . . . . . . . . . . . . . . 11 . . . . . . 7 . . . Machine Destruction 36 | . . . . . . . . 7 . 11 . . . . . . . . . . . . . . . . . . 11 . . . . . . 7 . . . Fabnet Peak Effective % . | . . . . . . . . . . . . . . . . . . . . . . . . . . . . . . . . . . . . . . . . Robots Rewired 23 | . . . . . . . . . . . . . . . 4 . 1 . . 1 . 2 . . . 5 . . 3 . . . . 6 . 1 . . . Allies Hacked 2 | . . . . . . . . . . . . . . . . . . 1 . . . . . . . . . . . . . . . 1 . . . . . Hacks Repelled . | . . . . . . . . . . . . . . . . . . . . . . . . . . . . . . . . . . . . . . . . Allies | -11 -10 -10 -9 -9 -9 -8 -8 -8 -8 -8 -7 -7 -7 -7 -7 -7 -6 -6 -6 -6 -6 -5 -5 -5 -5 -5 -4 -4 -4 -4 -4 -4 -4 -3 -3 -3 -2 -1 -1 -------- Run | Yrd Mat Min Mat Min Exi Min Mat Gar Mat Gar Fac Was Fac Low Low Dat Pro Fac Low Low Zio Pro Fac Upp Upp War Pro Fac Gar Fac Upp Upp Zhi Pro Res Gar Res Acc Com Total Allies 51 | . . . . . . . 2 . . . . 20 . . 4 . 1 . . 1 2 2 . . . 5 . 1 3 . . . . 7 . 3 . . . Largest Group 20 | . . . . . . . 1 1 . . . 20 20 14 18 18 14 14 10 5 2 2 2 . . 5 . 1 3 3 3 . . 6 3 3 3 2 . Highest-Rated Group 547 | . . . . . . . 10 10 . . . 547 547 437 521 521 394 379 272 137 45 59 59 . . 218 . 10 156 156 156 . . 286 160 127 127 97 . Highest-Rated Ally 99 | . . . . . . . 10 10 . . . 35 35 35 35 35 35 32 32 32 31 31 30 . . 49 . 10 99 89 89 . . 56 56 51 51 51 . Initial Warlord ECA Mod 21 | . . . . . . . . . 4 4 11 11 11 11 11 11 10 10 10 10 10 9 9 9 9 9 8 8 8 16 16 16 16 15 15 15 21 20 20 Total Orders 18 | . . . . . . . . 11 . . . . . . . . . . . . . . . . . . . 3 2 2 . . . . . . . . . STAY 7 | . . . . . . . . 5 . . . . . . . . . . . . . . . . . . . . 1 1 . . . . . . . . . ROAM 1 | . . . . . . . . 1 . . . . . . . . . . . . . . . . . . . . . . . . . . . . . . . FOLLOW 7 | . . . . . . . . 5 . . . . . . . . . . . . . . . . . . . . 1 1 . . . . . . . . . EXPLORE 2 | . . . . . . . . . . . . . . . . . . . . . . . . . . . . 2 . . . . . . . . . . . RETURN 1 | . . . . . . . . . . . . . . . . . . . . . . . . . . . . 1 . . . . . . . . . . . Ally Attacks 561 | . . . . . . . . . . . . . 162 14 11 57 32 57 28 6 . 15 26 . . 9 . . 10 . 17 . . 47 12 . 18 40 . Total Damage 16896 | . . . . . . . . . . . . . 5574 435 606 2218 894 1091 641 93 . 241 410 . . 445 . . 215 . 609 . . 1366 510 . 326 1222 . Kills 107 | . . . . . . . . . . . . . 46 5 6 4 7 8 3 . . 2 3 . . 3 . . 2 . 1 . . 5 1 . 1 10 . Allies Corrupted 6 | . . . . . . . . . . . . . . . . . . . 1 1 . . . . . . . . . . 1 . . 1 . . . 2 . Allies Melted 1 | . . . . . . . . . . . . . . . . . . . . 1 . . . . . . . . . . . . . . . . . . . Turrets Deployed 3 | . . . . . . . . . . . . . . . . 1 . . . . . . . . . . . . . . . . . . . . . 2 . Intel | -11 -10 -10 -9 -9 -9 -8 -8 -8 -8 -8 -7 -7 -7 -7 -7 -7 -6 -6 -6 -6 -6 -5 -5 -5 -5 -5 -4 -4 -4 -4 -4 -4 -4 -3 -3 -3 -2 -1 -1 ------- Run | Yrd Mat Min Mat Min Exi Min Mat Gar Mat Gar Fac Was Fac Low Low Dat Pro Fac Low Low Zio Pro Fac Upp Upp War Pro Fac Gar Fac Upp Upp Zhi Pro Res Gar Res Acc Com Active Infowar (turns) 20407 | . . . . . . 2 . . 32 496 415 475 1484 1492 1582 234 917 553 1327 1881 1393 539 754 634 596 1121 1097 787 . . 259 943 231 33 . . . 786 344 Optics 1130 | . . . . . . . . . . . . . . . . . . . . . . . . . . . . . . . . . . . . . . 786 344 Sensors 15962 | . . . . . . 2 . . . . . . . 1457 1582 234 917 175 1327 1881 1393 539 754 634 596 1121 1097 787 . . 259 943 231 33 . . . . . Structural 3282 | . . . . . . . . . 32 496 415 475 793 1005 66 . . . . . . . . . . . . . . . . . . . . . . . . Traps 2213 | . . . . . . . . . . . 169 7 1484 . . . . 553 . . . . . . . . . . . . . . . . . . . . . Robot Analysis Total 154 | . 4 . 3 . . 1 1 . . . . . . . . 145 . . . . . . . . . . . . . . . . . . . . . . . Derelict Logs Recovered 21 | . . 3 . 1 . . . . . . . . . 2 1 . . . 3 . 1 2 . 1 1 . 2 . . . 2 2 . . . . . . . Drone Launches 6 | . . . . . . . . . . . . . . . . . . . . . . . . . . . . 6 . . . . . . . . . . . Drone Recoveries 3 | . . . . . . . . . . . . . . . . . . . . . . . . . . . . 3 . . . . . . . . . . . Exploration | -11 -10 -10 -9 -9 -9 -8 -8 -8 -8 -8 -7 -7 -7 -7 -7 -7 -6 -6 -6 -6 -6 -5 -5 -5 -5 -5 -4 -4 -4 -4 -4 -4 -4 -3 -3 -3 -2 -1 -1 ------------- Run | Yrd Mat Min Mat Min Exi Min Mat Gar Mat Gar Fac Was Fac Low Low Dat Pro Fac Low Low Zio Pro Fac Upp Upp War Pro Fac Gar Fac Upp Upp Zhi Pro Res Gar Res Acc Com Turns Passed 37687 | 87 2257 935 1149 837 1110 997 1262 1072 174 1300 416 488 1488 1535 1666 234 917 553 1416 1881 1393 539 1354 709 596 1214 1163 1108 1348 131 729 981 231 717 211 1308 352 1485 344 Spaces Moved 18880 | 49 671 439 462 397 582 467 611 516 76 631 276 283 876 1022 1078 131 491 282 776 809 797 216 463 409 337 773 678 538 568 64 302 527 136 370 113 505 180 640 339 Core 357 | 3 . . . . . . . . . . . . . . . . . . . . . . . . . . . . . . . . . . . . . 128 226 Treads 1212 | 46 671 27 4 . . . 2 6 . 1 . . . . . . . . . . . 74 381 . . . . . . . . . . . . . . . . Legs 73 | . . . . . . . . . . . . . . . . . . . . . . . . . . . . . . . . . . . . . . . 73 Wheels 17238 | . . 412 458 397 582 467 609 510 76 630 276 283 876 1022 1078 131 491 282 776 809 797 142 82 409 337 773 678 538 568 64 302 527 136 370 113 505 180 512 40 Hover . | . . . . . . . . . . . . . . . . . . . . . . . . . . . . . . . . . . . . . . . . Flight . | . . . . . . . . . . . . . . . . . . . . . . . . . . . . . . . . . . . . . . . . Fastest Speed 50 | 50 160 175 175 190 175 190 150 150 150 150 145 145 135 135 138 153 138 153 138 220 153 153 150 165 135 147 147 154 175 198 198 155 138 155 162 159 177 50 50 Average Speed 168 | 153 228 197 191 190 185 195 158 152 150 154 145 145 145 140 138 153 162 161 165 220 171 182 224 165 160 147 162 160 189 198 198 169 154 162 162 170 177 158 78 Slowest Speed 575 | 160 240 240 480 190 235 235 400 400 180 400 145 195 195 220 153 153 170 170 220 220 220 240 240 165 165 165 165 175 198 198 198 180 155 172 162 210 177 575 150 Overloaded Moves . | . . . . . . . . . . . . . . . . . . . . . . . . . . . . . . . . . . . . . . . . Propulsion Burnouts . | . . . . . . . . . . . . . . . . . . . . . . . . . . . . . . . . . . . . . . . . Robots Hopped . | . . . . . . . . . . . . . . . . . . . . . . . . . . . . . . . . . . . . . . . . Potential Cave-ins . | . . . . . . . . . . . . . . . . . . . . . . . . . . . . . . . . . . . . . . . . Cave-ins Triggered . | . . . . . . . . . . . . . . . . . . . . . . . . . . . . . . . . . . . . . . . . Teleports 1 | . . . . . . . . . . . . . . . . . . . . . . . . . . . . . . . . . . . . . . 1 . Exploration Rate (%) 54 | 4 96 92 57 98 77 81 58 65 10 72 9 96 32 95 98 77 72 10 93 71 86 34 17 56 52 86 74 14 82 2 52 65 60 51 5 58 6 19 10 Regions Visited 39 Branch Regions 21 Pre-discovered Areas 39 | . 1 1 . . 1 . . . . . . . . 1 1 24 . . 2 . 1 1 . 1 . . 2 . . . . . 3 . . . . . . Known Exits Taken 14 | . . 1 1 . . . 1 . 1 . . . 1 1 . . . 1 . . . 1 1 . . . . 1 . 1 1 . . 1 1 . . . . Unknown Exits Taken 19 | 1 1 . . 1 1 1 . . . . . . . . 1 1 1 . 1 1 1 . . 1 1 1 1 . . . . 1 1 . . . 1 1 . Scrap Searched 43 | . . 2 . 2 . 2 . . . . . . . 3 5 . 3 . 8 3 3 1 . . 1 . 3 . . . 3 1 . 3 . . . . . Spaces Dug 17 | . . . . . . . . . 1 . . . . . . . . . . . . 2 2 4 . . . . . 1 . . . . 2 . 1 2 2 Terrain Destroyed 1731 | . 21 . 5 6 . 13 53 43 26 96 . . 5 8 . . 45 . 66 35 . 37 62 4 . 101 128 103 133 1 64 64 . 22 3 394 11 180 2 Melee 16 | . . . . . . . . . 1 . . . . . . . . . . . . 2 2 4 . . . . . 1 . . . . 2 . . 2 2 Projectile 167 | . . . . 1 . . . . . 4 . . 5 . . . . . 1 1 . . . . . 1 21 11 5 . 7 19 . 22 1 38 1 29 . AOE 1548 | . 21 . 5 5 . 13 53 43 25 92 . . . 8 . . 45 . 65 34 . 35 60 . . 100 107 92 128 . 57 45 . . . 356 10 149 . Terrain Rammed . | . . . . . . . . . . . . . . . . . . . . . . . . . . . . . . . . . . . . . . . . Walls Destroyed . | . . . . . . . . . . . . . . . . . . . . . . . . . . . . . . . . . . . . . . . . Machines Disabled . | . . . . . . . . . . . . . . . . . . . . . . . . . . . . . . . . . . . . . . . . Actions | -11 -10 -10 -9 -9 -9 -8 -8 -8 -8 -8 -7 -7 -7 -7 -7 -7 -6 -6 -6 -6 -6 -5 -5 -5 -5 -5 -4 -4 -4 -4 -4 -4 -4 -3 -3 -3 -2 -1 -1 --------- Run | Yrd Mat Min Mat Min Exi Min Mat Gar Mat Gar Fac Was Fac Low Low Dat Pro Fac Low Low Zio Pro Fac Upp Upp War Pro Fac Gar Fac Upp Upp Zhi Pro Res Gar Res Acc Com Total 23042 | 58 1308 489 663 449 611 526 831 715 109 857 292 363 1004 1100 1227 158 554 335 853 865 827 310 673 437 391 831 708 721 732 66 369 571 158 430 128 787 202 926 408 Wait 1894 | . 529 6 114 19 . 19 98 89 8 114 . 14 30 34 128 20 19 15 25 20 16 29 50 12 35 5 11 98 70 . 14 8 . 10 3 147 . 54 31 Move 18844 | 48 670 438 461 396 581 466 610 515 76 630 276 282 875 1021 1077 130 490 281 775 808 796 215 462 408 336 772 677 537 567 63 301 526 135 369 113 504 179 639 339 Hop . | . . . . . . . . . . . . . . . . . . . . . . . . . . . . . . . . . . . . . . . . Pick Up 240 | 4 27 8 6 5 8 10 14 9 2 8 8 15 8 3 . 3 6 4 6 2 3 3 14 . 3 10 . 10 2 . 4 5 5 2 1 6 3 10 3 Fast Attach 80 | 6 2 2 2 . 4 . 1 . . . . 7 7 6 . . . 2 . . 2 . 2 1 1 2 . 6 . . . 1 7 4 . . 3 8 4 Attach 160 | . . 1 2 2 2 1 6 1 4 12 2 1 5 2 2 . . 4 3 2 3 8 11 3 2 3 . 6 1 . 5 2 . 3 2 7 . 45 7 Detach 66 | . 1 2 . . 3 1 . . . 3 . 2 3 2 . . . . 1 . 1 6 4 2 . . . 6 . . 1 . . 1 . . . 21 6 Swap 299 | . 9 8 9 8 2 8 20 30 3 22 4 6 12 12 4 . 5 2 14 2 1 8 8 2 5 4 3 12 16 2 13 6 . 6 4 15 4 10 . Drop 224 | . 16 12 7 4 7 6 9 8 2 1 2 29 13 10 . 1 7 1 5 . 5 3 9 . 2 14 . 13 1 . 3 3 11 3 . 1 6 7 3 Fire 964 | . 44 12 37 14 . 15 39 50 13 58 . 7 43 10 11 3 26 26 24 22 . 27 67 5 3 13 17 28 56 . 28 20 . 25 3 82 7 129 . Melee 63 | . . . . . 4 . . . 1 4 . . . . 5 . 1 . . 2 . 7 3 4 . 8 . . 5 1 . . . 7 2 1 . 2 6 Ram 3 | . . . . . . . . . . . . . . . . 1 . . . . . . . . . . . . . . . . . . . . . 1 1 Kick . | . . . . . . . . . . . . . . . . . . . . . . . . . . . . . . . . . . . . . . . . Crush 11 | . 10 . . 1 . . . . . . . . . . . . . . . . . . . . . . . . . . . . . . . . . . . Escape Stasis 51 | . . . . . . . . . . 5 . . 8 . . . . . . . . . . . . . . . 14 . . . . . . 24 . . . Rewire . | . . . . . . . . . . . . . . . . . . . . . . . . . . . . . . . . . . . . . . . . Trap 143 | . . . 25 . . . 34 13 . . . . . . . . . . . 7 . 4 43 . 4 . . 5 . . . . . . . . . . 8 Miscellaneous . | . . . . . . . . . . . . . . . . . . . . . . . . . . . . . . . . . . . . . . . . Route ------- -11/Scrapyard -10/Materials (discovered 4 exits: *Mat x3 / *Min) -10/Mines (discovered 3 exits: *Mat x2 / [*Sub]) -9/Materials (discovered 3 exits: *Mat / *Min x2) -9/Mines (discovered 3 exits: *Mat x2 / *Exi) -9/Exiles -8/Mines -8/Materials (discovered 4 exits: *Fac x3 / Gar) -8/Garrison (discovered 4 exits: *Mat x4) -8/Materials -8/Garrison (discovered 2 exits: *Fac x2) -7/Factory -7/Waste -7/Factory (discovered 4 exits: *Fac / Sto / *Low x2) -7/Lower Caves -7/Lower Caves (discovered 2 exits: *Fac / *Dat) -7/Data Miner -6/Proximity Caves -6/Factory (discovered 3 exits: Fac / *Low x2) -6/Lower Caves -6/Lower Caves -6/Zion (discovered 2 exits: Dee / *Pro) -5/Proximity Caves -5/Factory -5/Upper Caves -5/Upper Caves -5/Warlord -4/Proximity Caves -4/Factory (discovered 4 exits: Upp x2 / Arm / Gar) -4/Garrison (discovered 3 exits: *Fac x3) -4/Factory (discovered 3 exits: *Upp x2 / Arm) -4/Upper Caves -4/Upper Caves (discovered 2 exits: Res / *Zhi) -4/Zhirov -3/Proximity Caves -3/Research (discovered 5 exits: Res x3 / Qua / Gar) -3/Garrison (discovered 2 exits: *Res x2) -2/Research -1/Access -1/Command History --------- Turn | Location | Event 53 | -11/Scrapyard | Discovered new exit (range 15) 88 | -11/Scrapyard | Entered Materials 191 | -10/Materials | Discovered new exit (range 16) 309 | -10/Materials | Build established: Mutant 400 | -10/Materials | Discovered new exit (range 5) 1219 | -10/Materials | Central database locked down 1251 | -10/Materials | Discovered new exit (range 15) 1586 | -10/Materials | Discovered new exit (range 10) 2345 | -10/Materials | Entered Mines 2348 | -10/Mines | Learned location of Recycling (-7) 2396 | -10/Mines | Joined a pair of Derelicts in attacking an 0b10 outpost 2472 | -10/Mines | Discovered new exit (range 15) 2781 | -10/Mines | Found a damaged Exp. Sensor Array with a note attached 2785 | -10/Mines | Found Prototype Device 2849 | -10/Mines | Core integrity fell below 50% 3019 | -10/Mines | Met a Derelict who couldn't figure out how to use a Trap Extractor 3074 | -10/Mines | Identified exit to Materials 3138 | -10/Mines | Discovered exit to Materials (range 10) 3280 | -10/Mines | Entered Materials 3280 | -9/Materials | Evolved 2 slots: Utility x2 3281 | -9/Materials | Identified exit to Mines 3548 | -9/Materials | Central database locked down 3609 | -9/Materials | Discovered new exit (range 15) 4123 | -9/Materials | Repaired Imp. Treads 4429 | -9/Materials | Entered Mines 4650 | -9/Mines | Discovered new exit (range 5) 4652 | -9/Mines | Found a hidden stash of uninstalled traps 4816 | -9/Mines | Assembled infested the area 4829 | -9/Mines | Discovered new exit (range 13) 5127 | -9/Mines | Build established: Scavenger-Mutant 5230 | -9/Mines | Learned Materials terminal intel 5256 | -9/Mines | Discovered new exit (range 5) 5266 | -9/Mines | Entered Exiles 5310 | -9/Exiles | Met 8R-AWN 5341 | -9/Exiles | Met EX-HEX 5389 | -9/Exiles | Met EX-BIN 5408 | -9/Exiles | Aligned with FarCom system 5410 | -9/Exiles | Given EX-Vault access code 5452 | -9/Exiles | Opened EX-Vault 5463 | -9/Exiles | Found Deploy-a-Sentry 5466 | -9/Exiles | Found Deploy-a-Sentry 5469 | -9/Exiles | Found Deploy-a-Sentry 5504 | -9/Exiles | Warned to stay clear of 0b10 Research branches 5561 | -9/Exiles | Met EX-DEC 5577 | -9/Exiles | Build established: Mutant 5580 | -9/Exiles | Learned location of Zion (-6) 5940 | -9/Exiles | Discovered new exit (range 11) 6053 | -9/Exiles | Visited The Gauntlet 6376 | -9/Exiles | Left Exiles lab with Deploy-a-Sentry 6376 | -9/Exiles | Entered Mines 6414 | -8/Mines | Build established: Hauler-Mutant 7302 | -8/Mines | Discovered new exit (range 7) 7337 | -8/Mines | Central database locked down 7370 | -8/Mines | Identified Exp. Sensor Array 7373 | -8/Mines | Entered Materials 7373 | -8/Materials | Evolved 2 slots: Propulsion x1, Weapon x1 7374 | -8/Materials | Loaded intel: 12 terminal locations 7703 | -8/Materials | Build established: Hauler-Skirmisher 7760 | -8/Materials | Discovered new exit (range 16) 7923 | -8/Materials | Discovered new exit (range 18) 8295 | -8/Materials | Central database locked down 8543 | -8/Materials | Destroyed 7 combat bots 8572 | -8/Materials | Discovered new exit (range 9) 8605 | -8/Materials | Identified exit to Garrison 8635 | -8/Materials | Entered Garrison 8635 | -8/Garrison | Accompanied by 1 ally 8932 | -8/Garrison | Triggered checkpoint 9003 | -8/Garrison | Discovered new exit (range 69) 9003 | -8/Garrison | Discovered new exit (range 63) 9003 | -8/Garrison | Discovered new exit (range 12) 9003 | -8/Garrison | Discovered new exit (range 47) 9055 | -8/Garrison | Learned Materials security intel 9150 | -8/Garrison | Triggered checkpoint 9199 | -8/Garrison | Triggered checkpoint 9243 | -8/Garrison | Triggered checkpoint 9286 | -8/Garrison | Garrison Relay disabled 9405 | -8/Garrison | Triggered checkpoint 9431 | -8/Garrison | Triggered checkpoint 9491 | -8/Garrison | Garrison Relay disabled 9688 | -8/Garrison | Found Hvy. Insulated Plating 9707 | -8/Garrison | Entered Materials 9793 | -8/Materials | Garrison activated, responded to threat 9820 | -8/Materials | Lost 3 parts (1p1n1w) 9881 | -8/Materials | Identified exit to Garrison 9881 | -8/Materials | Entered Garrison 9988 | -8/Garrison | Triggered checkpoint 10021 | -8/Garrison | Garrison Relay disabled 10123 | -8/Garrison | Phase Generator disabled 10426 | -8/Garrison | Lost 3 parts (3w) 10446 | -8/Garrison | Triggered checkpoint 10451 | -8/Garrison | Triggered checkpoint 10520 | -8/Garrison | Lost 5 parts (1n1u3w) 10592 | -8/Garrison | Garrison Relay disabled 10640 | -8/Garrison | Discovered new exit (range 11) 10802 | -8/Garrison | Build established: Hauler-Mutant 11027 | -8/Garrison | Triggered checkpoint 11128 | -8/Garrison | Garrison Relay disabled 11154 | -8/Garrison | Discovered new exit (range 8) 11181 | -8/Garrison | Entered Factory 11181 | -7/Factory | Evolved 2 slots: Propulsion x1, Utility x1 11486 | -7/Factory | Build established: Scavenger-Skirmisher 11597 | -7/Factory | Sucked down chute 11597 | -7/Factory | Entered Waste 11598 | -7/Waste | Joined by Warlord forces that had cleared the area 11702 | -7/Waste | Found Damper Plating 11894 | -7/Waste | Found Damper Plating 11928 | -7/Waste | Discovered new exit (range 13) 12040 | -7/Waste | Build established: Hauler-Skirmisher 12064 | -7/Waste | Found Broken Quantum Capacitor 12085 | -7/Waste | Entered Factory 12085 | -7/Factory | Accompanied by 20 allies 12466 | -7/Factory | Lost 3 allies 12682 | -7/Factory | Discovered new exit (range 15) 12834 | -7/Factory | Repaired Humpback 12938 | -7/Factory | Repaired Humpback 13285 | -7/Factory | First assault squad dispatched 13445 | -7/Factory | Identified exit to Storage 13445 | -7/Factory | Identified exit to Lower Caves 13573 | -7/Factory | Entered Lower Caves 13573 | -7/Lower Caves | Accompanied by 14 allies 13579 | -7/Lower Caves | Met a Warlord Commander 13580 | -7/Lower Caves | Learned location of Warlord (-5) 13581 | -7/Lower Caves | Warlord Commander delivered Encrypted Comm Array 13970 | -7/Lower Caves | Identified exit to Lower Caves 14026 | -7/Lower Caves | Encountered a Warlord checkpoint 14079 | -7/Lower Caves | Attracted the attention of an 0b10 checkpoint 14090 | -7/Lower Caves | Build established: Hauler-Tank 14302 | -7/Lower Caves | Learned 8 Factory zone layouts 14571 | -7/Lower Caves | Build established: Hauler-Skirmisher 14797 | -7/Lower Caves | Learned Factory interactive machine intel 15108 | -7/Lower Caves | Entered another Lower Caves area 15108 | -7/Lower Caves | Accompanied by 14 allies 15521 | -7/Lower Caves | Discovered new exit (range 15) 15540 | -7/Lower Caves | Attacked by a delusional Derelict stockpiling Unaware 15860 | -7/Lower Caves | Build established: Hauler-Mutant 16263 | -7/Lower Caves | Discovered new exit (range 5) 16774 | -7/Lower Caves | Entered Data Miner 16774 | -7/Data Miner | Accompanied by 18 allies 16774 | -7/Data Miner | Discovered new exit (range 6) 16804 | -7/Data Miner | Met Data Miner 16830 | -7/Data Miner | Learned location of Section 7 (-2) 16830 | -7/Data Miner | Acquired the access code to Warlord's prototype stash 16853 | -7/Data Miner | Received God Mode back door access code from Data Miner 16880 | -7/Data Miner | DAS Turret deployed 16887 | -7/Data Miner | Interfaced with the Data Conduit 16943 | -7/Data Miner | Lost 4 allies 16947 | -7/Data Miner | Build established: Hauler-Tank 17008 | -7/Data Miner | Entered Proximity Caves 17008 | -6/Proximity Caves | Accompanied by 14 allies 17632 | -6/Proximity Caves | Attracted the attention of an 0b10 outpost 17794 | -6/Proximity Caves | Found Imp. Powered Armor 17869 | -6/Proximity Caves | Discovered new exit (range 16) 17881 | -6/Proximity Caves | Attracted the attention of an 0b10 checkpoint 17925 | -6/Proximity Caves | Entered Factory 17925 | -6/Factory | Accompanied by 14 allies 17925 | -6/Factory | Evolved 2 slots: Utility x2 17926 | -6/Factory | Identified exit to Lower Caves 17926 | -6/Factory | Identified exit to Factory 17927 | -6/Factory | Loaded intel: 267 machine locations 17928 | -6/Factory | Loaded intel: 54 interactive machine locations 18164 | -6/Factory | Watched by a mysterious "MATRIX" hacker 18164 | -6/Factory | Discovered exit to Lower Caves (range 15) 18226 | -6/Factory | Build established: Hauler-Skirmisher 18234 | -6/Factory | Garrison activated, responded to threat 18478 | -6/Factory | Entered Lower Caves 18478 | -6/Lower Caves | Accompanied by 10 allies 18608 | -6/Lower Caves | Lost 5 allies 18784 | -6/Lower Caves | Build established: Hauler-Tank 18826 | -6/Lower Caves | Encountered a Warlord checkpoint 18840 | -6/Lower Caves | Discovered new exit (range 5) 19155 | -6/Lower Caves | Build established: Trapper-Skirmisher 19546 | -6/Lower Caves | Attracted the attention of an 0b10 checkpoint 19678 | -6/Lower Caves | Acquired the password to a Derelict Tinkerer's latest research 19691 | -6/Lower Caves | Found Prototype Special Weapon 19894 | -6/Lower Caves | Entered another Lower Caves area 19894 | -6/Lower Caves | Accompanied by 5 allies 19963 | -6/Lower Caves | Lost 4 allies 19973 | -6/Lower Caves | Build established: Trapper-Tank 20497 | -6/Lower Caves | Ambushed by wild Derelicts 20776 | -6/Lower Caves | Attracted the attention of an 0b10 checkpoint 20788 | -6/Lower Caves | Build established: Hauler-Tank 21004 | -6/Lower Caves | Discovered new exit (range 7) 21775 | -6/Lower Caves | Entered Zion 21888 | -6/Zion | Discovered new exit (range 9) 21964 | -6/Zion | Found Prototype Launcher 21964 | -6/Zion | Identified Gui. Missile Launcher 22558 | -6/Zion | Identified exit to Deep Caves 22770 | -6/Zion | Gained Derelict followers 22934 | -6/Zion | Rebuked by Imprinter 23168 | -6/Zion | Entered Proximity Caves 23168 | -5/Proximity Caves | Accompanied by 2 allies 23191 | -5/Proximity Caves | Found Alien Artifact 23306 | -5/Proximity Caves | Attracted the attention of an 0b10 checkpoint 23412 | -5/Proximity Caves | Attracted the attention of an 0b10 outpost 23574 | -5/Proximity Caves | Learned Factory trap positions 23649 | -5/Proximity Caves | Discovered exit to Factory (range 11) 23707 | -5/Proximity Caves | Entered Factory 23707 | -5/Factory | Accompanied by 2 allies 23707 | -5/Factory | Evolved 2 slots: Utility x2 23708 | -5/Factory | Identified exit to Upper Caves 23709 | -5/Factory | Loaded intel: 123 trap records 23710 | -5/Factory | Loaded intel: 255 machine locations 24013 | -5/Factory | Build established: Hauler-Assassin 24408 | -5/Factory | Cargo convoy interrupted 24740 | -5/Factory | Build established: Hauler-Tank 24960 | -5/Factory | Intercept squad dispatched 24994 | -5/Factory | Spotted Tracker 24996 | -5/Factory | Destroyed Tracker 25042 | -5/Factory | Spotted Combat Programmer 25061 | -5/Factory | Entered Upper Caves 25419 | -5/Upper Caves | Attracted the attention of an 0b10 checkpoint 25613 | -5/Upper Caves | Build established: Scavenger-Mutant 25647 | -5/Upper Caves | Discovered new exit (range 5) 25770 | -5/Upper Caves | Entered another Upper Caves area 25932 | -5/Upper Caves | Attracted the attention of an 0b10 checkpoint 25971 | -5/Upper Caves | Encountered a Warlord checkpoint 25993 | -5/Upper Caves | Learned Factory garrison access intel 26009 | -5/Upper Caves | Found DCF Scrap (12 items) 26217 | -5/Upper Caves | Discovered new exit (range 9) 26366 | -5/Upper Caves | Entered Warlord 26421 | -5/Warlord | System corruption cleaned by Quarantine Array 26422 | -5/Warlord | Build established: Hauler-Tank 26846 | -5/Warlord | Build established: Scavenger-Mutant 27067 | -5/Warlord | Visited the Vortex Lab 27078 | -5/Warlord | Found Prototype Energy Cannon 27078 | -5/Warlord | Identified Vortex Cannon 27081 | -5/Warlord | Warlord's base attacked by MAIN.C 27084 | -5/Warlord | Found Prototype Launcher 27084 | -5/Warlord | Identified Vortex Catalyst Activator 27091 | -5/Warlord | Found Vortex Cannon 27362 | -5/Warlord | Opened Warlord's prototype stash 27371 | -5/Warlord | Found Exp. Armor Integrity Analyzer 27378 | -5/Warlord | Found Prototype Hackware 27387 | -5/Warlord | Found Vortex Chain Reactor 27408 | -5/Warlord | Build established: Hauler-Mutant 27431 | -5/Warlord | Warlord forces counterattacked 27459 | -5/Warlord | Spotted Executioner 27460 | -5/Warlord | Spotted Striker 27461 | -5/Warlord | Spotted Executioner 27495 | -5/Warlord | Spotted Executioner 27498 | -5/Warlord | Spotted Striker 27502 | -5/Warlord | Allies destroyed Striker 27507 | -5/Warlord | Spotted Striker 27514 | -5/Warlord | Destroyed Striker 27524 | -5/Warlord | Spotted Executioner 27542 | -5/Warlord | Destroyed 8 combat bots 27556 | -5/Warlord | Lost 13 allies 27564 | -5/Warlord | Discovered new exit (range 9) 27580 | -5/Warlord | Entered Proximity Caves 27662 | -4/Proximity Caves | Attracted the attention of an 0b10 checkpoint 27757 | -4/Proximity Caves | Build established: Hauler-Tank 28331 | -4/Proximity Caves | Discovered new exit (range 5) 28743 | -4/Proximity Caves | Entered Factory 28743 | -4/Factory | Evolved 2 slots: Power x1, Utility x1 28744 | -4/Factory | Loaded intel: 268 machine locations 28745 | -4/Factory | Loaded intel: 4 garrison access locations 28776 | -4/Factory | Identified System Mapper 28987 | -4/Factory | Identified exit to Upper Caves 28987 | -4/Factory | Identified exit to Armory 29089 | -4/Factory | Repaired Humpback 29108 | -4/Factory | Repaired Humpback 29212 | -4/Factory | Identified exit to Garrison 29320 | -4/Factory | Build established: Hauler-Skirmisher 29328 | -4/Factory | Repaired Helical Railgun 29510 | -4/Factory | Intercept squad dispatched 29513 | -4/Factory | Spotted Tracker 29515 | -4/Factory | Destroyed Tracker 29543 | -4/Factory | Spotted Combat Programmer 29562 | -4/Factory | Destroyed Combat Programmer 29587 | -4/Factory | Found Exp. Focal Shield 29825 | -4/Factory | Build established: Hauler-Tank 29851 | -4/Factory | Entered Garrison 29852 | -4/Garrison | Loaded intel: 38 machine locations 29873 | -4/Garrison | Triggered checkpoint 29978 | -4/Garrison | Phase Generator disabled 30125 | -4/Garrison | Triggered checkpoint 30161 | -4/Garrison | Triggered checkpoint 30366 | -4/Garrison | Spotted Striker 30366 | -4/Garrison | Spotted Striker 30367 | -4/Garrison | Discovered new exit (range 12) 30379 | -4/Garrison | Destroyed Striker 30396 | -4/Garrison | Destroyed Striker 30449 | -4/Garrison | Rewired Striker 30674 | -4/Garrison | Discovered new exit (range 10) 30817 | -4/Garrison | Triggered checkpoint 30890 | -4/Garrison | Triggered checkpoint 30925 | -4/Garrison | Garrison Relay disabled 30941 | -4/Garrison | Garrison Relay disabled 31177 | -4/Garrison | Discovered new exit (range 12) 31199 | -4/Garrison | Entered Factory 31199 | -4/Factory | Accompanied by 3 allies 31200 | -4/Factory | Loaded intel: 287 machine locations 31330 | -4/Factory | Entered Upper Caves 31330 | -4/Upper Caves | Accompanied by 3 allies 31412 | -4/Upper Caves | Identified exit to Upper Caves 31943 | -4/Upper Caves | Spotted B-86 Titan 31973 | -4/Upper Caves | Destroyed B-86 Titan 32059 | -4/Upper Caves | Entered another Upper Caves area 32105 | -4/Upper Caves | Learned Research emergency access door positions 32646 | -4/Upper Caves | Identified exit to Research 32996 | -4/Upper Caves | Discovered new exit (range 4) 33040 | -4/Upper Caves | Entered Zhirov 33040 | -4/Zhirov | Discovered new exit (range 3) 33070 | -4/Zhirov | Met Zhirov 33112 | -4/Zhirov | Zhirov requested help retrieving the SGEMP Prototype 33136 | -4/Zhirov | Found Alien Artifact 33136 | -4/Zhirov | Identified Integrated Reactor 33136 | -4/Zhirov | Installed Integrated Reactor, increased core energy generation (+10) 33200 | -4/Zhirov | Found Alien Artifact 33271 | -4/Zhirov | Entered Proximity Caves 33273 | -3/Proximity Caves | Greeted by an Infiltrator in a former 0b10 base 33393 | -3/Proximity Caves | Former 0b10 base attacked by MAIN.C 33692 | -3/Proximity Caves | P-80 Master assimilated allied Swordsman 8a 33839 | -3/Proximity Caves | Spotted B-86 Titan 33874 | -3/Proximity Caves | Allies destroyed B-86 Titan 33904 | -3/Proximity Caves | Discovered exit to Research (range 15) 33981 | -3/Proximity Caves | Identified Molecular Deconstructor 33988 | -3/Proximity Caves | Entered Research 33988 | -3/Research | Accompanied by 3 allies 33988 | -3/Research | Evolved 2 slots: Utility x2 33989 | -3/Research | Identified exit to Quarantine 33991 | -3/Research | Loaded intel: 111 machine locations 34051 | -3/Research | Identified exit to Research 34182 | -3/Research | Spotted B-86 Titan 34199 | -3/Research | Identified exit to Garrison 34199 | -3/Research | Entered Garrison 34200 | -3/Garrison | Loaded intel: 38 machine locations 34350 | -3/Garrison | Triggered checkpoint 34376 | -3/Garrison | Spotted B-86 Titan 34385 | -3/Garrison | Destroyed B-86 Titan 34434 | -3/Garrison | Triggered checkpoint 34569 | -3/Garrison | Triggered checkpoint 34569 | -3/Garrison | Triggered checkpoint 34613 | -3/Garrison | Destroyed 7 combat bots 34719 | -3/Garrison | Phase Generator disabled 34761 | -3/Garrison | Discovered exit to Research (range 8) 34787 | -3/Garrison | Triggered checkpoint 34935 | -3/Garrison | Learned Research security intel 35095 | -3/Garrison | Discovered exit to Research (range 14) 35099 | -3/Garrison | Destroyed 7 combat bots 35126 | -3/Garrison | Triggered checkpoint 35256 | -3/Garrison | Rescued a captive Derelict 35257 | -3/Garrison | Rescued a captive Derelict 35315 | -3/Garrison | Triggered checkpoint 35322 | -3/Garrison | Garrison Relay disabled 35507 | -3/Garrison | Entered Research 35507 | -2/Research | Accompanied by 3 allies 35507 | -2/Research | Evolved 2 slots: Utility x2 35509 | -2/Research | Loaded intel: 119 machine locations 35657 | -2/Research | Discovered new exit (range 13) 35680 | -2/Research | Identified Dimensional Node Initializer 35757 | -2/Research | First assault squad dispatched 35859 | -2/Research | Entered Access 35859 | -1/Access | Accompanied by 2 allies 35859 | -1/Access | Evolved 2 slots: Utility x1, Weapon x1 35860 | -1/Access | Loaded intel: 119 machine locations 35872 | -1/Access | Energy Cycler disabled 36359 | -1/Access | First assault squad dispatched 36465 | -1/Access | Identified Transdimensional Reconstructor 36465 | -1/Access | Warped through subspace 36494 | -1/Access | Intercept squad dispatched 36534 | -1/Access | Spotted Tracker 36535 | -1/Access | Spotted Tracker 36540 | -1/Access | Destroyed Tracker 36547 | -1/Access | Destroyed Tracker 36592 | -1/Access | Spotted Combat Programmer 36602 | -1/Access | Destroyed Combat Programmer 36622 | -1/Access | Spotted Combat Programmer 36627 | -1/Access | Destroyed Combat Programmer 36851 | -1/Access | Lost 7 parts (2n5u) 36855 | -1/Access | Destroyed 8 combat bots 37012 | -1/Access | Lost 4 parts (1p2u1w) 37170 | -1/Access | Lost 3 parts (2n1u) 37180 | -1/Access | Destroyed 7 combat bots 37228 | -1/Access | DAS Turret deployed 37245 | -1/Access | DAS Turret deployed 37273 | -1/Access | Core integrity fell below 50% 37300 | -1/Access | Lost 17 parts (2p3n4u8w) 37324 | -1/Access | Intercept squad dispatched 37336 | -1/Access | Spotted Tracker 37337 | -1/Access | Spotted Tracker 37338 | -1/Access | Spotted Tracker 37341 | -1/Access | Discovered new exit (range 8) 37344 | -1/Access | Entered Command 37345 | -1/Command | Loaded intel: 65 machine locations 37535 | -1/Command | Build established: Trapper-Mutant 37552 | -1/Command | Core integrity fell below 20% 37688 | -1/Command | Destroyed by G-73 Enforcer with Phase Gun Last Messages --------------- 37641_ W-44 Eye destroyed. 37645_ Adv. Trap Extractor dropped Dirty Bomb Trap. 37645_ Installed Dirty Bomb Trap. 37648_ Acquired 23 matter. 37648_ W-44 Eye sends out distress signal. 37653_ System corrupted: Matter fused (-6). 37654_ Adv. Trap Extractor extracted Dirty Bomb Trap (stored). 37664_ W-44 Eye sends out distress signal. 37671_ S-43 Plague IFF system glitched. 37671_ K-01 Serf collects debris. 37673_ G-73 Enforcer misfires. 37675_ K-01 Serf collects debris. 37676_ G-73 Enforcer misfires. 37679_ K-01 Serf collects debris. 37685_ S-43 Plague triggered Dirty Bomb Trap. 37685_ An explosion rips through the floor. 37685_ S-43 Plague destroyed. 37686_ K-01 Serf collects debris. Map ----- +----------------------------------------------------+ | #?? # #???????????????????????????? | | #?? # #???????????????????????????? | | #? # #???????????????????????????? | | #? # "" #???????????????????????????? | | # # "" """#???????????????????????????? | | # # """" T"#???????????????????????????? | | # # """" """#??????????????????????????## | | + # "" "" #????????????????########### | | # # #????????????????# | | ######### #???######???????# ^ | | ##############/########## ######### ####### | | s ######## | | " # # | | #########" "##;####### ########## # # | | ##?????# " #######????????# # / # | | ???????# * [#??????????????# # # | | ???????# " g ###????????????# # [+ | | ???????# # =%* ; #????????????# # # | | ???????# # g ; #????????????# # # | | ???????# ######g%!#####?????????#! # # | | ???????# # g #?????????# # # | | ???????# [ #] g #?????????#^ # # | | ???????# # #?????????# # # | | ???????########## #?????????# # # | | ????????????????# #?????????# # # | | ????????????????# @ #?????????# #[ # | | ????????????????# % ; ??#s ######## | | ????????????????# * ; # s#??????# | | ????????????????# = # # #??????# | | ????????????????# # /ss ??????? | | ????????????????# k #? # s ????? | | ????????????????# ! #?? ######????? | | ????????????????#####;g;;#####??? #?????????? | | ???????????????????? ???????? #?????????? | | ???????????????????# ! ???????? [ #?????T""?? | | ???????????????????# #??????? #????""""?? | | ???????????????????# #???????? #????""""?? | | ???????????????????+ !! #????????? #????"""??? | | ???????????????????# !! #??????????#?????????? | | ???????????????????# ![ #????????????????????? | | ???????????????????# #????????????????????? | | ???????????????????#[ #????????????????????? | | ???????????????????# #????????????????????? | | ???????????????????# ####????????????????????? | | ???????????????????# #???????????????????????? | | ???????????????????# #???????????????????????" | | ???????????????????# #???????????????????????" | | ???????????????????# ???????????????????????" | | ??????????????????? ???????????????????????" | | ??????????????????? ???????????????????????? | +----------------------------------------------------+ Best States ------------- Heat Dissipation 166 Coolant Potential 100 Energy Generation 65 Energy Capacity 1100 Matter Stores 418 Matter Capacity 450 Sight Range 22 Robot Scan Range 20 Terrain Scan Density 10 Additional Mass Support 9 Corruption Block 5 Armor Coverage 2000 Resistance: KI 30 Resistance: EM 90 Utility Shielding 90 Weapon Cycling 15 Phase Shifting 15 Evasion (%) 55 Targeting Accuracy 8 Armor Integrity Analysis 50 Recoil Reduction 4 Energy Filtering 50 Particle Charging 30 Offensive Hacking 20 Authchip Count 1 Trap Extractor Capacity 8 Item Schematics ----------------- Humpback | -8/Materials | Scanalyzed Combat Drone Bay | -7/Data Miner | Free Lgt. Regenerative Plating | -7/Data Miner | Free Cld. Aerolev Unit | -7/Data Miner | Free Gravity Neutralizer | -7/Data Miner | Free Scatter Rocket Array | -7/Data Miner | Free Thunder Leg | -7/Data Miner | Free Lrn. Tractor Beam | -7/Data Miner | Free Variable Charge Gun | -7/Data Miner | Free Wave Gun | -7/Data Miner | Free Battle Cannon | -6/Zion | Free Beamcaster | -6/Zion | Free Slug Cannon | -6/Zion | Free Bore Cannon | -6/Zion | Free Assault Drone Bay | -4/Zhirov | Free Exp. Heat Sink | -4/Zhirov | Free Exp. Optical Array | -4/Zhirov | Free Imp. Arc Thrower | -4/Zhirov | Free Robot Schematics ------------------ M-22 Extractor | -7/Data Miner | Free H-66 Slayer | -7/Data Miner | Free A-15 Conveyor | -7/Data Miner | Free S-27 Virus | -7/Data Miner | Free G-50 Soldier | -7/Data Miner | Free Y-64 Sentinel | -7/Data Miner | Free Fabricated ------------ Nothing Repaired ---------- Imp. Treads | 44% | -9/Materials Humpback | 4% | -7/Factory Humpback | 58% | -7/Factory Humpback | 10% | -4/Factory Humpback | 34% | -4/Factory Helical Railgun | 31% | -4/Factory Studied --------- Com. Wheel | -8/Materials | Hacked Alien Tech Used ----------------- Integrated Reactor Transdimensional Reconstructor Achievements -------------- Dramatic Entrance Challenges ------------ None Game ------ Seed SkeletonCoreMount Manual? 0 Play Time 06:46:09 Cumulative 285.0 hours Start 2026.09.01 @ 19:03:12 End 2026.09.08 @ 18:33:39 Sessions 16 Manual Loads 0 Difficulty Rogue Special Mode None Game No. 153 Rogue 153 Adventurer 0 Explorer 0 Win Type - Total 5 Types 5/0/0/0/0/0/0/0/0/0 Lore% 81 Gallery% 71 Achievement% 63 Wizard Run 0 Options --------- Layout 1 ASCII 0 Keyboard 0 Movement Numpad Keybinds 0 Fullscreen 1 Font 24/Smallcaps Map View 50x35 Zoom Use 0% Tactical HUD 1 Map Filters NONE Filters NONE Steam 1 RUN: 434c72ce-980a-4f6a-8e1f-b0d0b3b5fde7